Cogmind - Beta 16 @@@ ROGUE MODE // 2026.01.21 @ 12:59:04 // Winter2019/RPGLIKE Player: Gallgagger Result: System corrupted Performance ------------- Evolutions (8) 4000 Regions Visited (30) 6000 Robots Destroyed (1897) 9485 Value Destroyed (109325) 109325 Prototype IDs (166) 3320 Alien Tech Used (3) 600 Bonus (118907) 118907 TOTAL SCORE: 251637 Bonus ------- Triggered High Security 4000 High Alert Combat Kills 59973 Follower Combat Kills 675 Destroyed Unchained 5000 Met Zhirov 300 MAIN.C Attacked Warlord 500 Warlord Defense Kills 32458 Scanned by Researcher 500 Met Sigix 2000 Destroyed Superfortress 15000 Friendly Fire -1499 Cogmind --------- Core Integrity 0/800 Matter 300/300 Energy 208/340 System Corruption 200% Temperature Cool (-200) Movement Flying (18) Location -2/Protoforge Parts ------- > --- POWER (2) -------- Concept Zero-point Core Concept Zero-point Core > --- PROPULSION (6) --- Cooled Cesium-ion Thruster Cooled Cesium-ion Thruster Cooled Impulse Thruster Cooled Impulse Thruster Concept Fieldthrust Drive Concept Fieldthrust Drive > --- UTILITY (12) ----- Armored Scrap Engine Advanced Cryofiber Web Experimental Heat Sink Concept Phasing Heat Sink Concept Phasing Heat Sink Concept Phasing Heat Sink Advanced Particle Charger Particle Accelerator Quantum Capacitor Graphene Brace > --- WEAPON (5) ------- Experimental Stasis Projector Flak Phasing Construct/C > --- INVENTORY (6) ---- Advanced Gravity Neutralizer Crosscalibrator Transdimensional Reconstructor Subatomic Replicator Zionite Phaser-S Vortex Driver (30) Peak State ------------ > --- POWER ------------ Concept Zero-point Core Concept Zero-point Core > --- PROPULSION ------- Cooled Cesium-ion Thruster Cooled Cesium-ion Thruster Cooled Impulse Thruster Cooled Impulse Thruster Concept Fieldthrust Drive Concept Fieldthrust Drive > --- UTILITY ---------- Armored Scrap Engine Advanced Cryofiber Web Experimental Heat Sink Concept Phasing Heat Sink Concept Phasing Heat Sink Concept Phasing Heat Sink Advanced Particle Charger Particle Accelerator Quantum Capacitor Graphene Brace > --- WEAPON ----------- Experimental Stasis Projector Flak Phasing Construct/C > --- INVENTORY -------- Advanced Gravity Neutralizer Crosscalibrator Transdimensional Reconstructor Subatomic Replicator Zionite Phaser-S Vortex Driver [Rating: 219] Favorites ----------- Power Micro Nuclear Core Engine Light Ion Engine Power Core Micro Nuclear Core Reactor Cold Fusion Reactor Propulsion Cooled Cesium-ion Thruster Leg Myomer Exoskeleton Wheel Wheel Hover Unit Zionite Glidesys I Flight Unit Cooled Cesium-ion Thruster Utility Seismic Detector Device Seismic Detector Processor Improved Signal Interpreter Hackware Concept Network Penetrator Protection Makeshift Ablative Armor Weapon Constructs Energy Gun Medium Laser Energy Cannon Constructs Ballistic Gun Minigun Ballistic Cannon Antimatter Cannon Special Weapon Stasis Beam Special Melee Weapon Advanced Datajack Build | -11 -10 -10 -9 -9 -8 -8 -8 -6 -6 -6 -6 -6 -5 -5 -5 -5 -5 -5 -5 -4 -4 -4 -4 -4 -3 -3 -3 -2 -2 -2 ------- Run | Yrd Mat Min Mat Min Mat Sto Rec Fac Low Low Zio Dee Pro Fac Was Fac Upp Upp War Pro Fac Upp Upp Zhi Pro Res Qua Res Tes Frg Slots Evolved 21 | 4 2 . 5 . 1 . . 2 . . . . 1 1 . 1 . . . 1 . . . . . . 1 . 1 1 Power 1 | 1 . . . . . . . . . . . . . . . . . . . . . . . . . . . . . . Propulsion 5 | 1 1 . 1 . . . . 1 . . . . . . . . . . . . . . . . . . . . 1 . Utility 11 | 1 1 . 2 . 1 . . 1 . . . . . 1 . 1 . . . 1 . . . . . . 1 . . 1 Weapon 4 | 1 . . 2 . . . . . . . . . 1 . . . . . . . . . . . . . . . . . Parts Attached 154 | 8 10 2 12 1 6 5 1 15 . . 1 4 2 11 . 2 1 . 19 1 8 . . 7 . 3 6 2 8 19 Power 16 | 2 2 . . . 1 1 . 1 . . . 1 . 1 . . . . 1 . 1 . . 2 . 1 . . . 2 Engine 4 | 2 2 . . . . . . . . . . . . . . . . . . . . . . . . . . . . . Core 5 | . . . . . 1 . . 1 . . . . . 1 . . . . . . . . . . . . . . . 2 Reactor 7 | . . . . . . 1 . . . . . 1 . . . . . . 1 . 1 . . 2 . 1 . . . . Propulsion 30 | 2 6 . 4 . 2 . . 5 . . . 1 . 3 . . . . 2 . . . . . . . . . 2 3 Treads . | . . . . . . . . . . . . . . . . . . . . . . . . . . . . . . . Leg 1 | . . . . . . . . . . . . . . . . . . . . . . . . . . . . . 1 . Wheel 4 | 2 2 . . . . . . . . . . . . . . . . . . . . . . . . . . . . . Hover 1 | . . . . . . . . . . . . 1 . . . . . . . . . . . . . . . . . . Flight 24 | . 4 . 4 . 2 . . 5 . . . . . 3 . . . . 2 . . . . . . . . . 1 3 Utility 76 | 2 1 . 3 1 3 . 1 4 . . 1 2 . 4 . 2 1 . 12 1 6 . . 4 . 2 5 2 5 14 Device 58 | 2 . . 2 1 3 . 1 3 . . 1 1 . 4 . 2 . . 7 1 4 . . 2 . 2 5 1 5 11 Storage . | . . . . . . . . . . . . . . . . . . . . . . . . . . . . . . . Processor 12 | . . . . . . . . 1 . . . 1 . . . . . . 4 . 2 . . 1 . . . 1 . 2 Hackware 1 | . . . . . . . . . . . . . . . . . . . . . . . . . . . . . . 1 Protection 5 | . 1 . 1 . . . . . . . . . . . . . 1 . 1 . . . . 1 . . . . . . Artifact . | . . . . . . . . . . . . . . . . . . . . . . . . . . . . . . . Weapon 32 | 2 1 2 5 . . 4 . 5 . . . . 2 3 . . . . 4 . 1 . . 1 . . 1 . 1 . Energy Gun 11 | . 1 1 1 . . 2 . 2 . . . . 2 . . . . . 1 . . . . . . . . . 1 . Energy Cannon 3 | . . . . . . 1 . 1 . . . . . . . . . . 1 . . . . . . . . . . . Ballistic Gun 11 | 2 . 1 4 . . 1 . 1 . . . . . . . . . . 1 . . . . . . . 1 . . . Ballistic Cannon 2 | . . . . . . . . 1 . . . . . . . . . . 1 . . . . . . . . . . . Launcher . | . . . . . . . . . . . . . . . . . . . . . . . . . . . . . . . Special Weapon 4 | . . . . . . . . . . . . . . 3 . . . . . . . . . 1 . . . . . . Impact Weapon . | . . . . . . . . . . . . . . . . . . . . . . . . . . . . . . . Slashing Weapon . | . . . . . . . . . . . . . . . . . . . . . . . . . . . . . . . Piercing Weapon . | . . . . . . . . . . . . . . . . . . . . . . . . . . . . . . . Special Melee Weapon 1 | . . . . . . . . . . . . . . . . . . . . . 1 . . . . . . . . . Unidentified Prototypes 64 | . . . . 1 . 5 1 7 1 . . 4 2 3 . . . . 15 1 2 . . 7 . 1 5 . 7 2 Parts Lost 1 | . . . . . . . . . . . . . . . . . . . . . . . . . . . . . 1 . Power . | . . . . . . . . . . . . . . . . . . . . . . . . . . . . . . . Propulsion 1 | . . . . . . . . . . . . . . . . . . . . . . . . . . . . . 1 . Utility . | . . . . . . . . . . . . . . . . . . . . . . . . . . . . . . . Weapon . | . . . . . . . . . . . . . . . . . . . . . . . . . . . . . . . Highest Loss Streak 1 | . . . . . . . . . . . . . . . . . . . . . . . . . . . . . 1 . To Critical Strikes . | . . . . . . . . . . . . . . . . . . . . . . . . . . . . . . . Average Backups 3 | . . . . . 2 5 3 1 2 2 2 2 2 2 4 4 4 5 5 4 5 6 6 6 6 5 5 5 5 6 Power . | . . . . . . . . . . . . . . . . . . . . . . . . . . . . . . . Propulsion . | . . . . . . . . . . . . . . . . . . . . . . . . . . . . . . . Utility 1 | . . . . . 1 1 1 1 2 2 2 1 . . 1 2 2 3 3 2 2 4 4 3 3 1 1 1 1 1 Weapon 1 | . . . . . 1 4 2 . . . . 1 2 2 2 1 1 1 1 2 2 2 2 2 2 2 2 2 2 2 Tool/Special . | . . . . . . . . . . . . . . . . . . . . . . . . . . . . . . . Unused Backups 24 | . . . . . . . 7 7 1 1 . . 1 . . 1 . . 1 . . . . . . . 1 . . 4 Power . | . . . . . . . . . . . . . . . . . . . . . . . . . . . . . . . Propulsion . | . . . . . . . . . . . . . . . . . . . . . . . . . . . . . . . Utility 1 | . . . . . . . . . . . . . . . . . . . . . . . . . . . 1 . . . Weapon 20 | . . . . . . . 7 7 1 1 . . 1 . . 1 . . . . . . . . . . . . . 2 Tool/Special 3 | . . . . . . . . . . . . . . . . . . . 1 . . . . . . . . . . 2 Average Slot Usage (%) 82 | . 99 100 95 100 100 100 86 76 76 77 77 77 73 77 80 80 80 80 79 80 79 77 77 77 77 76 77 78 76 79 Engine 3 | . 23 20 14 13 6 6 6 1 . . . . . . . . . . . . . . . . . . . . . . Core 5 | . . . . . 5 . . 3 5 5 5 5 5 9 10 9 9 9 8 9 8 9 9 8 9 4 4 4 4 5 Reactor 2 | . . . . . . 5 6 5 5 5 5 5 5 . . . . . . . . . . . . 3 3 4 4 2 Flight 23 | . 12 30 26 26 25 25 25 27 27 27 27 27 26 25 25 24 23 23 22 22 22 22 22 22 22 22 21 21 22 24 Device 31 | . 23 20 21 26 28 31 31 30 26 27 29 33 31 33 35 36 37 38 38 39 38 31 31 30 31 35 37 31 29 33 Protection 1 | . 2 10 6 6 6 6 1 . . . . . . . . . . . . . . . . . . . . 4 4 2 Energy Cannon 3 | . . . . . . . 1 2 5 5 5 5 5 5 5 4 4 4 4 4 4 4 4 4 4 4 4 4 4 4 Ballistic Gun 4 | . 11 10 23 26 25 25 12 . . . . . . . . . . . . . . . . . . . . . . . Special Weapon 2 | . . . . . . . . . . . . . . 3 5 4 4 4 3 4 3 4 4 4 4 4 4 4 4 3 Peak Build Rating 219 | 10 12 14 33 38 47 52 63 97 92 91 100 106 110 129 127 135 136 135 147 144 154 149 149 156 151 163 170 166 183 219 Average Rating 111 | 5 10 13 27 33 41 49 57 85 91 91 94 101 105 116 127 131 135 135 136 142 148 149 149 149 151 157 163 163 167 195 On Entrance 103 | . 10 12 14 33 33 47 50 59 91 91 91 100 104 106 127 127 135 135 135 140 144 149 149 149 151 151 160 165 162 176 Avg Prop Armor Cover (%) 3 | . 6 . . . . . . . . . . . . . . . . . 1 . . . . . . . . . . . Naked Turns . | . . . . . . . . . . . . . . . . . . . . . . . . . . . . . . . Heaviest Build 66 | 14 15 17 32 32 37 42 42 49 41 47 47 45 43 47 46 48 55 48 59 47 50 49 49 50 50 52 60 60 59 66 Greatest Support 78 | 37 37 22 32 37 42 42 42 53 49 49 58 58 58 61 52 52 52 52 67 61 67 52 52 52 52 67 61 76 76 78 Greatest Overweight (x) 1 | 1 1 . . . . . . . . . . . . . . . 1 . 1 1 . . . . . . . . 1 . Average Overweight (x) . | . . . . . . . . . . . . . . . . . . . . . . . . . . . . . . . Largest Inventory Capacity 6 | 1 1 2 2 2 5 6 6 6 6 6 6 6 6 6 6 6 6 6 6 6 6 6 6 6 6 6 6 6 6 6 Average Capacity 5 | . 1 1 2 2 4 5 6 6 6 6 6 6 6 6 6 6 6 6 6 6 6 6 6 6 6 6 6 6 6 6 Most Carried 6 | . 1 2 2 2 5 6 6 6 6 6 6 6 6 6 6 6 6 6 6 6 6 6 6 6 6 6 6 6 6 6 Average Carried 4 | . . 1 1 1 4 5 3 3 4 5 6 5 5 5 5 5 5 6 5 5 5 6 6 5 6 5 5 5 5 5 Final Capacity 6 | 1 1 2 2 2 5 6 6 6 6 6 6 6 6 6 6 6 6 6 6 6 6 6 6 6 6 6 6 6 6 6 Final Carried 6 | . . 2 2 2 5 6 1 4 5 6 6 6 6 6 5 5 6 6 6 4 6 6 6 6 6 6 5 6 6 6 Scrap Engine Consumption 51 | . . . . . . . 16 26 . 3 2 . 3 . . . . . . . . . . . . . . . 1 . Constructs Created 1 | . . . . . . . 1 . . . . . . . . . . . . . . . . . . . . . . . Constructs Modified 23 | . . . . . . . 6 13 . 1 1 . 2 . . . . . . . . . . . . . . . . . Class Distribution -------------------- 72% | Scavenger-Sprinter 17% | Sprinter 7% | Scavenger-Mutant Dominant Class ---------------- Scavenger-Mutant | -10/Materials Scavenger-Mutant | -10/Mines Scavenger-Sprinter | -9/Materials Scavenger-Sprinter | -9/Mines Scavenger-Sprinter | -8/Materials Scavenger-Sprinter | -8/Storage Sprinter | -8/Recycling Sprinter | -6/Factory Sprinter | -6/Lower Caves Sprinter | -6/Lower Caves Sprinter | -6/Zion Scavenger-Sprinter | -6/Deep Caves Scavenger-Sprinter | -5/Proximity Caves Scavenger-Sprinter | -5/Factory Scavenger-Sprinter | -5/Waste Scavenger-Sprinter | -5/Factory Scavenger-Sprinter | -5/Upper Caves Scavenger-Sprinter | -5/Upper Caves Scavenger-Sprinter | -5/Warlord Scavenger-Sprinter | -4/Proximity Caves Scavenger-Sprinter | -4/Factory Scavenger-Sprinter | -4/Upper Caves Scavenger-Sprinter | -4/Upper Caves Scavenger-Sprinter | -4/Zhirov Scavenger-Sprinter | -3/Proximity Caves Scavenger-Sprinter | -3/Research Scavenger-Sprinter | -3/Quarantine Scavenger-Sprinter | -2/Research Scavenger-Sprinter | -2/Testing Scavenger-Sprinter | -2/Protoforge Resources | -11 -10 -10 -9 -9 -8 -8 -8 -6 -6 -6 -6 -6 -5 -5 -5 -5 -5 -5 -5 -4 -4 -4 -4 -4 -3 -3 -3 -2 -2 -2 ----------- Run | Yrd Mat Min Mat Min Mat Sto Rec Fac Low Low Zio Dee Pro Fac Was Fac Upp Upp War Pro Fac Upp Upp Zhi Pro Res Qua Res Tes Frg Matter Collected 8564 | 308 251 118 1224 30 1698 1488 250 637 11 9 20 70 30 219 . 125 56 12 484 53 170 6 12 210 20 80 176 30 191 576 Remotely . | . . . . . . . . . . . . . . . . . . . . . . . . . . . . . . . Salvage Created 101744 | 199 1186 210 2256 15 2549 1908 521 7679 . 799 1265 921 1154 5337 1639 7022 290 773 17806 1431 9490 638 646 277 1308 4453 1989 4637 3243 20103 Parts 5133 | 15 70 12 141 7 137 99 35 326 . 32 97 43 47 311 29 380 41 23 918 75 491 23 28 17 77 240 129 234 178 878 Haulers Intercepted 21 | . . . 3 . 4 3 . 2 . . . . . 2 . 1 . . . 1 3 . . . . 1 1 . . . Recyclers Shooed 3 | . 1 . . . . . . 1 . . . . . . . . . . . . . . . . . 1 . . . . Parts Field Recycled . | . . . . . . . . . . . . . . . . . . . . . . . . . . . . . . . Retrieved Matter . | . . . . . . . . . . . . . . . . . . . . . . . . . . . . . . . Parts Self-Destructed 336 | . . . . . . . . . . 28 . . 47 . . . 42 22 . 72 . 21 27 . 77 . . . . . Prevented . | . . . . . . . . . . . . . . . . . . . . . . . . . . . . . . . Parts Restored 3 | . . . . . . . . . . . . . . . . . . . . . . . . . . . . . . 3 Faulty 3 | . . . . . . . . . . . . . . . . . . . . . . . . . . . . . . 3 Kills | -11 -10 -10 -9 -9 -8 -8 -8 -6 -6 -6 -6 -6 -5 -5 -5 -5 -5 -5 -5 -4 -4 -4 -4 -4 -3 -3 -3 -2 -2 -2 ------- Run | Yrd Mat Min Mat Min Mat Sto Rec Fac Low Low Zio Dee Pro Fac Was Fac Upp Upp War Pro Fac Upp Upp Zhi Pro Res Qua Res Tes Frg Combat Hostiles Destroyed 1708 | . 33 10 52 3 50 38 7 143 . 16 7 14 23 94 6 138 17 10 322 30 148 11 14 . 30 58 30 68 47 289 Guns 192 | . 33 9 52 3 50 38 7 . . . . . . . . . . . . . . . . . . . . . . . Cannons 1451 | . . . . . . . . 128 . 15 6 14 21 89 6 132 17 9 317 29 141 11 14 . 27 58 29 67 46 275 AOE 57 | . . . . . . . . 10 . . . . 2 5 . 6 . 1 5 1 7 . . . 3 . 1 1 1 14 Classes Destroyed 42 | 2 5 1 4 . 3 . 1 5 . 2 2 2 . 4 1 . . . 4 1 . . . . . . 1 . 2 2 Worker 50 | . 1 . 1 . 3 1 . 4 . . . . . 6 . 2 . . . . 10 . . . . 7 . 6 2 7 Builder 21 | . . . . . 2 1 . 1 . . . . . 2 . 2 . . . . 4 . . . . 5 . . 1 3 Tunneler 9 | 5 . . . . . . . 1 . . . . . 1 . . . . . . . . . . . 1 . 1 . . Hauler 21 | . . . 3 . 4 3 . 2 . . . . . 2 . 1 . . . 1 3 . . . . 1 1 . . . Recycler 14 | 1 1 . . . . . 2 1 . . . . . 1 . 1 . . . . . . . . . 4 1 1 1 . Carrier 13 | . . . . . . . . . . . . . . 1 . 3 . . . . 3 . . . . . . . 1 5 Mechanic 18 | . . . . . . . . 4 . . . . . 1 . 1 . . 4 . 1 . . . . 1 . . 1 5 Operator 6 | . . . 1 . . . . . . . . . . 1 . . . . . . 1 . . . . 1 1 1 . . Drone 22 | . . . . . . . . . . . . . . . . . . . . 2 . . . . 2 3 . . . 15 Turret 9 | . . . . . . . . . . . . . . 9 . . . . . . . . . . . . . . . . Watcher 46 | . 1 . 3 . . . . 2 . . . . . 5 . 3 . . . . 9 . . . . 6 2 6 2 7 Swarmer 175 | . 11 2 13 3 4 . . 7 . 1 . . 3 13 . 11 3 1 24 2 20 2 5 . 7 5 4 18 5 11 Cutter 9 | . . . . . . . . . . . . . . 5 . 4 . . . . . . . . . . . . . . Saboteur 38 | . . . . . . . . 4 . . . . . 1 . 6 . . 11 . . . . . . . . . . 16 Grunt 633 | . 19 4 28 . 32 19 . 73 . 7 . . 13 34 . 49 12 3 101 15 49 3 3 . 14 13 10 11 28 93 Brawler 86 | . . . 2 . . 1 . 9 . 2 . . 2 2 . 6 . 2 25 3 11 . 2 . . 1 . . . 18 Duelist 65 | . . . . . . . . 6 . 2 . . 3 1 . 10 1 2 12 3 7 . 3 . . . . . 2 13 Protector 47 | . . . . . . . . 7 . 1 . . . 2 . 6 . . 16 . 2 . . . . 1 1 . 1 10 Researcher 13 | . . . . . . . . . . . . . . . . . . . . . . . . . . . 4 . 4 5 Sentry 134 | . . . 9 . 7 13 4 10 . 1 . . 2 5 . 14 1 1 . 2 24 1 1 . 2 5 7 13 . 12 Demolisher 5 | . . . . . . . . . . . . . . . . . . . 5 . . . . . . . . . . . Specialist 11 | . . . . . . . . . . . . . . 3 . . . . 2 . . . . . . 2 . . . 4 Hunter 139 | . . . . . 6 5 . 15 . 1 . . . 12 . 17 . . 12 . 16 2 . . 4 18 5 9 . 17 Programmer 122 | . . . . . . . . 12 . . . . . 8 . 13 . 1 28 2 14 1 . . . 6 . 12 6 19 Heavy 16 | . . . . . 1 . . . . . . . . 5 . 2 . . . . 2 . . . . 3 . 3 . . Q-Series 6 | . . . . . . . . . . . . . . . . . . . . . . . . . . . . . . 6 Behemoth 12 | . . . . . . . . . . 1 . . . 1 . . . . 4 1 1 1 . . 1 . . 2 . . Compactor 6 | . . . . . . . . . . . . . . . 6 . . . . . . . . . . . . . . . Enhanced Grunt 1 | . . . . . . . . . . . 1 . . . . . . . . . . . . . . . . . . . Lightning 3 | . . . . . . . . . . . . . . . . . . . . . . . . . . . 3 . . . Hotshot 10 | . . . . . . . . . . . . . . . . . . . . . . . . . . . . . . 10 Decapitator 11 | . . . . . . . . . . . . . . . . . . . . . . . . . . . . . . 11 Immortal 2 | . . . . . . . . . . . . . . . . . . . . . . . . . . . . . . 2 Overlord 1 | . . . . . . . . . . . . . . . . . . . . . . . . . . . . . . 1 Investigator 4 | . . . . . . . . . . . . . . . . . . . . . . . . . . . . . 1 3 Striker 22 | . . . . . . . . . . . . . . . . . . . 12 . . . . . . . . . 2 8 Executioner 24 | . . . . . . . . . . . . . . . . . . . 16 . . . . . . . . . . 8 Alpha 7 3 | . . . . . . . . . . . . . . . . . . . . . . . . . . . . . 1 2 Fortress 1 | . . . . . . . . . . . . . . . . . . . . . . . . . . . . . 1 . V-Series 12 | . . . . . . . . . . . . . . . . . . . . . . . . . . . . . . 12 Protovariant L 1 | . . . . . . . . . . . . . . . . . . . . . . . . . . . . . 1 . Subdweller 3 | . 3 . . . . . . . . . . . . . . . . . . . . . . . . . . . . . Scrapper 3 | . . . . . . . 3 . . . . . . . . . . . . . . . . . . . . . . . Zionite 46 | . . . . . . . . . . . 46 . . . . . . . . . . . . . . . . . . . Z-Light 9 | . . . . . . . . . . . . 9 . . . . . . . . . . . . . . . . . . Tinkerer 10 | . . . . . . . . . . 1 4 . . . . . . . 5 . . . . . . . . . . . Assembled 7 | . . 4 . . . . . . . . . 3 . . . . . . . . . . . . . . . . . . Golem 2 | . . . . . . . . . . . . 2 . . . . . . . . . . . . . . . . . . Surgeon 4 | . . . . . . . . . . . 1 . . . . . . . 3 . . . . . . . . . . . Wasp 1 | . . . . . . . . . . . . . . . . 1 . . . . . . . . . . . . . . Thug 24 | . . 2 1 . . . . . . . 1 . . . . 1 . . 19 . . . . . . . . . . . Savage 7 | . . . . . . . . . . . 1 . . . . . . . 5 . . 1 . . . . . . . . Butcher 4 | . . . . . . . . . . . . . . . . . . . 4 . . . . . . . . . . . Bouncer 10 | . . . . . . . . . . . . . . . . . . . 10 . . . . . . . . . . . Wizard 4 | . . . . . . . . . . . . . . . . . . . 4 . . . . . . . . . . . Marauder 3 | . . . . . . . . . . . 1 . . . . . . . 2 . . . . . . . . . . . Mutant 9 | . . . . . . . . . . . 4 . . . . . . . 5 . . . . . . . . . . . Sapper 3 | . . . . . . . . . . . . . . . . . . . 3 . . . . . . . . . . . Commander 1 | . . . . . . . . . . . . . . . . . . . 1 . . . . . . . . . . . Knight 2 | . . . . . . . . . . . . . . . . . . . 2 . . . . . . . . . . . Best Kill Streak 69 | 5 8 3 7 3 13 10 3 22 . 6 30 9 14 14 10 36 7 9 69 9 32 4 11 3 13 19 14 22 16 38 Combat Bots Only 66 | . 8 3 7 3 11 10 3 20 . 6 3 9 14 13 9 36 7 9 66 9 22 4 11 . 13 12 7 17 16 37 Max Kills in Single Turn 6 | 1 1 1 2 1 2 2 1 6 . 1 2 2 5 3 1 6 3 3 3 3 5 2 2 1 3 4 3 3 3 5 Gunslinging 1 | . . . 1 . 1 1 . . . . . . . . . . . . . . . . . . . . . . . . Exploded 4 | . . . . . . . . 4 . . . . 2 1 . 2 . 1 1 1 2 . . . 2 . 1 1 1 3 Melee . | . . . . . . . . . . . . . . . . . . . . . . . . . . . . . . . Uniques/NPCs Destroyed 12 | . . . . . . . . . . . 1 . . 2 . . . . 2 . 2 . . 3 . 1 . . . 1 Imprinter (-6/Zion) CL-0N3 (-5/Factory) GL-D0S (-5/Factory) Warlord (-5/Warlord) Fake God Mode (-5/Warlord) DW-4LL (-4/Factory) 6S-H0T (-4/Factory) Zhirov (-4/Zhirov) Svarog (-4/Zhirov) Perun (-4/Zhirov) QV-33N (-3/Research) Superfortress (-2/Protoforge) Combat | -11 -10 -10 -9 -9 -8 -8 -8 -6 -6 -6 -6 -6 -5 -5 -5 -5 -5 -5 -5 -4 -4 -4 -4 -4 -3 -3 -3 -2 -2 -2 -------- Run | Yrd Mat Min Mat Min Mat Sto Rec Fac Low Low Zio Dee Pro Fac Was Fac Upp Upp War Pro Fac Upp Upp Zhi Pro Res Qua Res Tes Frg Hostile Shots Fired 3003 | . 124 26 67 5 114 96 13 565 . 46 75 20 15 216 . 170 13 7 410 24 201 14 6 22 46 104 43 88 70 403 Missed 1377 | . 42 11 32 3 51 41 4 271 . 17 39 10 9 96 . 77 9 5 200 14 104 8 3 6 19 49 19 37 25 176 Hits 1626 | . 82 15 35 2 63 55 9 294 . 29 36 10 6 120 . 93 4 2 210 10 97 6 3 16 27 55 24 51 45 227 Melee 14 | . . . . . . . . 1 . 2 . . . 3 . . . . . . 1 . . . . . . . . 7 Projectile 1612 | . 82 15 35 2 63 55 9 293 . 27 36 10 6 117 . 93 4 2 210 10 96 6 3 16 27 55 24 51 45 220 AOE 35 | . . . . . . . . . . . . . . 4 . 3 . . 3 . . . . . . 2 . . 1 22 Critical Strikes 89 | . . 1 2 . 6 2 . 8 . 1 1 . . 8 . 9 . . 11 . 7 . 1 . 2 6 . 1 1 22 Actively Blocked 74 | . . . . . 1 2 . 8 . 1 1 . . 8 . 9 . . 11 . 7 . . . . 3 . . 1 22 Part Disruptions 5 | . . . . . . . . . . . . . . . . . . . 4 . . . . 1 . . . . . . Damage Taken 33278 | . 972 197 457 8 769 611 138 3806 . 522 571 409 103 2998 . 2100 175 50 4646 757 2191 198 49 79 691 1310 589 1362 1165 6355 Core 26011 | . 786 141 308 5 511 420 113 3005 . 430 455 332 85 2407 . 1681 138 46 3752 623 1751 154 38 63 555 1051 474 1014 811 4862 Absorbed by Shields 2306 | . . . 4 8 252 220 36 1108 . 104 116 . . . . . . . . . . . . . . 24 . . 118 316 Redirected to Core 22760 | . 577 91 282 5 440 339 84 2575 . 337 404 286 66 2130 . 1498 138 16 3239 494 1594 154 38 52 486 933 413 962 789 4338 Regen/Repaired (Parts) 147 | . 7 . . . . . . 135 . . . . . . . 5 . . . . . . . . . . . . . . Core Remaining (%) 97 | 100 . 100 . 100 . . 95 . . . . . 100 . . . . . . 94 . . . . 93 . 100 . . . Volleys Fired 2611 | 19 101 36 90 3 100 88 16 388 2 60 115 19 17 115 9 138 11 10 342 25 158 13 13 8 27 74 38 74 65 437 Largest 4 | 2 2 2 4 4 4 4 4 1 1 1 1 1 1 2 1 1 1 1 2 2 2 1 1 1 1 1 2 1 2 2 Hottest 308 | 40 70 79 135 100 100 100 103 140 105 105 140 140 308 308 308 308 308 308 308 308 308 308 308 308 308 308 308 308 308 308 Shots Fired 3572 | 38 202 71 305 12 400 352 56 387 2 60 115 19 17 115 8 132 11 10 333 25 159 13 13 8 26 74 39 74 66 430 Gun 1434 | 38 202 71 305 12 400 352 53 . . . . . . . . . . . . . . . . . . . . . 1 . Cannon 2128 | . . . . . . . 3 387 2 60 115 19 17 113 8 131 11 10 332 24 158 13 13 8 26 74 38 74 63 429 Launcher . | . . . . . . . . . . . . . . . . . . . . . . . . . . . . . . . Special 10 | . . . . . . . . . . . . . . 2 . 1 . . 1 1 1 . . . . . 1 . 2 1 Kinetic 1552 | 38 101 36 279 12 400 352 53 281 . . . . . . . . . . . . . . . . . . . . . . Thermal 449 | . 101 35 26 . . . 2 88 2 60 115 19 . . . . . . . . . . . . . . . . 1 . Explosive . | . . . . . . . . . . . . . . . . . . . . . . . . . . . . . . . Electromagnetic 19 | . . . . . . . 1 18 . . . . . . . . . . . . . . . . . . . . . . Phasic 1542 | . . . . . . . . . . . . . 17 113 8 131 11 10 332 24 158 13 13 8 26 74 38 74 63 429 Robot Hit Streak 83 | 6 21 14 16 3 33 35 12 58 . 64 83 37 55 42 33 55 31 27 62 33 59 20 20 56 81 54 63 32 55 72 Robot Miss Streak 9 | 3 4 2 3 1 5 2 3 3 . . 2 1 2 3 1 5 1 1 4 2 3 5 1 . 2 3 3 2 4 9 Penetration Max 1 | . . . . . . . . 1 . . . . . . . . . . . . . . . . . . . . . . Secondary Targets 30 | . 2 1 9 . 10 8 . . . . . . . . . . . . . . . . . . . . . . . . Max Gunslinging Chain 1 | . 1 1 1 . 1 1 . . . . . . . . . . . . . . . . . . . . . . . . Capacitor 812 | . . . . . . . . . . . . . . . . . . . . . 83 13 13 8 26 74 37 74 63 421 Shots Hit Robots 2883 | 23 148 57 195 6 282 264 35 366 . 54 90 19 15 96 8 114 10 9 313 24 133 13 13 6 23 65 34 70 56 342 Core Hits 2359 | 11 70 24 76 3 114 86 14 271 . 18 52 19 23 107 6 144 15 10 339 30 172 10 13 8 28 73 38 82 78 425 Critical Kills 6 | . . . 1 . 2 1 1 . . 1 . . . . . . . . . . . . . . . . . . . . Critical Parts Destroyed 7 | . . . . . 3 3 1 . . . . . . . . . . . . . . . . . . . . . . . Critical Strikes 25 | . 7 2 4 . 5 4 2 . . 1 . . . . . . . . . . . . . . . . . . . . Burn 12 | . 7 2 3 . . . . . . . . . . . . . . . . . . . . . . . . . . . Meltdown 1 | . . . . . . . . . . 1 . . . . . . . . . . . . . . . . . . . . Destroy 12 | . . . 1 . 5 4 2 . . . . . . . . . . . . . . . . . . . . . . . Melee Attacks 2 | . . . . . . . . . . . . . . . . . . . . . 2 . . . . . . . . . Impact . | . . . . . . . . . . . . . . . . . . . . . . . . . . . . . . . Slashing . | . . . . . . . . . . . . . . . . . . . . . . . . . . . . . . . Piercing . | . . . . . . . . . . . . . . . . . . . . . . . . . . . . . . . Sneak Attacks 2 | . . . . . . . . . . . . . . . . . . . . . 2 . . . . . . . . . Combat Hostiles . | . . . . . . . . . . . . . . . . . . . . . . . . . . . . . . . Follow-up Attacks . | . . . . . . . . . . . . . . . . . . . . . . . . . . . . . . . Damage Inflicted 450701 | 186 1648 822 3299 98 4821 4391 636 25389 . 3484 8127 5092 3372 26490 2501 33361 3471 2361 84891 6701 39679 3233 2575 1961 6504 20447 7946 20106 16590 110519 Guns 15758 | 186 1648 822 3299 98 4754 4391 560 . . . . . . . . . . . . . . . . . . . . . . . Cannons 418155 | . . . . . . . 76 22871 . 3484 7916 4962 3149 25079 2501 31939 3421 2252 83404 6416 37349 3233 2511 1961 6206 20170 7781 19618 16175 105681 Explosions 16788 | . . . . . 67 . . 2518 . . 211 130 223 1411 . 1422 50 109 1487 285 2330 . 64 . 298 277 165 488 415 4838 Melee . | . . . . . . . . . . . . . . . . . . . . . . . . . . . . . . . Ramming . | . . . . . . . . . . . . . . . . . . . . . . . . . . . . . . . Kinetic 30581 | 186 516 432 3018 98 4754 4391 560 16626 . . . . . . . . . . . . . . . . . . . . . . Thermal 39378 | . 1132 390 281 . . . 29 7308 . 3484 8127 5092 223 1342 . 1422 50 109 1487 285 2114 . 64 . 298 277 165 488 373 4838 Explosive 1021 | . . . . . . . . 881 . . . . . 69 . . . . . . 71 . . . . . . . . . Electromagnetic 875 | . . . . . 67 . 47 574 . . . . . . . . . . . . 145 . . . . . . . 42 . Impact . | . . . . . . . . . . . . . . . . . . . . . . . . . . . . . . . Slashing . | . . . . . . . . . . . . . . . . . . . . . . . . . . . . . . . Piercing . | . . . . . . . . . . . . . . . . . . . . . . . . . . . . . . . Phasic 378846 | . . . . . . . . . . . . . 3149 25079 2501 31939 3421 2252 83404 6416 37349 3233 2511 1961 6206 20170 7781 19618 16175 105681 Highest Corruption 200 | . 2 2 . . . . . 3 . . . . . 5 5 9 9 9 15 15 2 2 2 3 3 3 3 . 3 200 Average Corruption 7 | . 2 2 . . . . . 1 . . . . . 4 5 8 9 9 13 15 1 2 2 2 3 2 3 . 2 9 Corruption Purged 3 | . . . . . . . . 3 . . . . . . . . . . . . . . . . . . . . . . Corruption Blocked . | . . . . . . . . . . . . . . . . . . . . . . . . . . . . . . . Effects 327 | . 6 5 . . . . . 2 . . . . . 20 6 43 12 6 86 17 4 2 4 2 5 1 7 . 7 92 Message Errors 79 | . 1 2 . . . . . . . . . . . 4 1 12 2 2 26 3 2 . 1 . . . 1 . 2 20 Matter Fused 70 | . . 2 . . . . . . . . . . . 6 2 10 3 4 10 2 . 1 2 . . . 2 . 4 22 Heat Flow Errors 30 | . . . . . . . . . . . . . . 3 . 3 . . 7 4 . . . . . . 1 . 1 11 Energy Discharges 46 | . 3 . . . . . . 1 . . . . . 3 2 9 3 . 7 2 . . . 1 2 . . . . 13 Parts Rejected 4 | . 1 . . . . . . . . . . . . 1 . . 1 . 1 . . . . . . . . . . . Parts Fused 5 | . . . . . . . . . . . . . . . . . . . 1 1 . 1 . . . 1 . . . 1 Data Loss (minor) 40 | . . . . . . . . . . . . . . 1 . 1 2 . 16 2 1 . 1 1 1 . 3 . . 11 Data Loss (major) 12 | . . . . . . . . . . . . . . 1 . 2 1 . 3 . 1 . . . 1 . . . . 3 Misfires 1 | . 1 . . . . . . . . . . . . . . . . . . . . . . . . . . . . . Alerts 1 | . . . . . . . . . . . . . . . . . . . 1 . . . . . . . . . . . Misdirections 9 | . . . . . . . . . . . . . . . . . . . 4 2 . . . . . . . . . 3 Weapon Failures 30 | . . 1 . . . . . 1 . . . . . 1 1 6 . . 10 1 . . . . 1 . . . . 8 Overload Shots . | . . . . . . . . . . . . . . . . . . . . . . . . . . . . . . . Overflow Damage 37050 | . . . . . . . 22 706 . 352 681 380 326 2704 . 3481 428 506 7842 542 3775 310 445 80 909 2637 717 1978 1259 6970 Projectiles 36293 | . . . . . . . 22 607 . 352 681 318 326 2691 . 3442 428 506 7805 542 3667 310 445 80 854 2580 717 1951 1258 6711 Explosions 757 | . . . . . . . . 99 . . . 62 . 13 . 39 . . 37 . 108 . . . 55 57 . 27 1 259 Melee . | . . . . . . . . . . . . . . . . . . . . . . . . . . . . . . . Knockbacks 121 | . . . . . . . . 121 . . . . . . . . . . . . . . . . . . . . . . Impact . | . . . . . . . . . . . . . . . . . . . . . . . . . . . . . . . Kinetic 107 | . . . . . . . . 107 . . . . . . . . . . . . . . . . . . . . . . Secondary 14 | . . . . . . . . 14 . . . . . . . . . . . . . . . . . . . . . . Self-Inflicted Damage 2538 | . . . . . . . . 295 . . . 84 . 372 . 217 98 . 165 154 348 41 . . 222 154 33 40 100 215 Shots 48 | . . . . . . . . 5 . . . 1 . 6 . 4 2 . 4 3 8 1 . . 3 2 1 1 3 4 Rammed . | . . . . . . . . . . . . . . . . . . . . . . . . . . . . . . . Targets Rammed . | . . . . . . . . . . . . . . . . . . . . . . . . . . . . . . . Kicked . | . . . . . . . . . . . . . . . . . . . . . . . . . . . . . . . Crushed . | . . . . . . . . . . . . . . . . . . . . . . . . . . . . . . . Highest Temperature 395 | . 38 23 75 . 36 8 14 112 16 26 94 103 333 340 75 304 136 251 395 228 272 281 354 344 203 334 131 200 200 180 Average Temperature 60 | . 7 7 21 . 7 2 7 44 11 10 23 50 140 114 37 92 89 68 121 90 99 134 152 246 70 99 131 74 106 60 Received Heat Transfer 4661 | . 279 129 177 . 347 214 47 823 . 111 30 69 36 369 . 216 36 18 542 30 147 9 9 . 106 147 114 54 121 481 Effects 5 | . . . . . . . . . . . . . . 2 . 1 . . 1 . 1 . . . . . . . . . Energy Bleed 2 | . . . . . . . . . . . . . . 1 . . . . . . 1 . . . . . . . . . Interference 2 | . . . . . . . . . . . . . . . . 1 . . 1 . . . . . . . . . . . Short Circuit 1 | . . . . . . . . . . . . . . 1 . . . . . . . . . . . . . . . . Siege Activations . | . . . . . . . . . . . . . . . . . . . . . . . . . . . . . . . Martial Activations . | . . . . . . . . . . . . . . . . . . . . . . . . . . . . . . . Shielding Activations . | . . . . . . . . . . . . . . . . . . . . . . . . . . . . . . . Robots Disrupted . | . . . . . . . . . . . . . . . . . . . . . . . . . . . . . . . Combat Hostiles . | . . . . . . . . . . . . . . . . . . . . . . . . . . . . . . . Robots Corrupted 3 | . . . . . . . . 3 . . . . . . . . . . . . . . . . . . . . . . Combat Hostiles 2 | . . . . . . . . 2 . . . . . . . . . . . . . . . . . . . . . . Parts Fried 13 | . . . . . . . . 10 . . . . . . . . . . 1 . 1 . . . . . . . . 1 Impact Corruptions 1 | . . . . . . . . 1 . . . . . . . . . . . . . . . . . . . . . . Robots Melted 6 | . . 1 . . . . . 3 . 1 1 . . . . . . . . . . . . . . . . . . . Combat Hostiles 6 | . . 1 . . . . . 3 . 1 1 . . . . . . . . . . . . . . . . . . . Parts Melted 56 | . 13 2 3 . . . 1 17 . 6 4 . . . . . . . 10 . . . . . . . . . . . Heat Transferred 28977 | . 3774 1184 925 . . . 37 7295 . 2675 2498 100 250 886 . 1400 50 150 1277 250 1600 . 100 . 250 300 100 400 174 3302 Parts Sabotaged 3 | . . . . . . . . . . . . . . . . . . . . . 3 . . . . . . . . . Parts Stolen . | . . . . . . . . . . . . . . . . . . . . . . . . . . . . . . . Parts Stripped . | . . . . . . . . . . . . . . . . . . . . . . . . . . . . . . . Power Chain Reactions 171 | . . . . . 1 . . 6 . . 4 2 1 11 1 15 2 1 30 3 19 1 1 . 3 10 4 8 8 40 Alert | -11 -10 -10 -9 -9 -8 -8 -8 -6 -6 -6 -6 -6 -5 -5 -5 -5 -5 -5 -5 -4 -4 -4 -4 -4 -3 -3 -3 -2 -2 -2 ------- Run | Yrd Mat Min Mat Min Mat Sto Rec Fac Low Low Zio Dee Pro Fac Was Fac Upp Upp War Pro Fac Upp Upp Zhi Pro Res Qua Res Tes Frg Maximum Alert Level 5 | . 2 1 4 2 5 4 2 5 . . . . . 5 4 5 . . . . 5 . . . . 5 5 5 5 5 Low Security (%) 4 | 100 26 3 5 . . . . . . . . . . 12 . . . . . . 1 . . . . . . . . . Level 1 9 | . 36 96 23 . 13 4 . . . . . . . 12 . . . . . . 9 . . . . . . . . . Level 2 16 | . 36 . 13 100 14 49 100 12 . . . . . 8 . . . . . . 21 . . . . 27 . . . . Level 3 8 | . . . 32 . 10 37 . 6 . . . . . 7 61 2 . . . . 2 . . . . 19 . . . . Level 4 12 | . . . 24 . 31 8 . 16 . . . . . 16 38 9 . . . . 6 . . . . 25 24 45 . . Level 5 24 | . . . . . 30 . . . . . . . . 43 . 18 . . . . 10 . . . . 27 53 32 78 63 High Security 24 | . . . . . . . . 63 . . . . . . . 68 . . . . 48 . . . . . 22 21 21 36 Max Security . | . . . . . . . . . . . . . . . . . . . . . . . . . . . . . . . Sterilizations 5 | . . . 1 . 1 . . 1 . . . . . . . 1 . . . . 1 . . . . . . . . . Peak Influence 10078 | 15 599 298 1332 508 1694 1191 618 4694 . . . . . 2959 1114 4968 . . . . 4908 . . . . 2206 2071 2965 3977 10078 Initial 2236 | . . 228 74 508 197 667 457 426 . . . . . 170 1100 739 . . . . 442 . . . . 474 1236 1164 1667 2236 Average 2215 | 3 321 250 771 481 1144 764 516 2797 . . . . . 1314 1087 3196 . . . . 2047 . . . . 1215 1766 1811 2587 5656 Influence Increases 51006 | 30 1036 153 1716 70 1829 1308 242 4852 . 382 . . 480 3548 26 4679 370 215 6055 635 5422 260 300 20 620 2176 1005 2331 2530 8716 Destroy 0b10 Robot/C 32100 | . 600 120 1060 60 1020 760 80 2720 . 300 . . 460 1800 . 3000 340 200 5000 560 2960 220 280 20 560 1060 660 1360 1300 5600 Destroy 0b10 Robot/NC 1250 | 30 15 . 40 . 45 25 10 110 . 5 . . . 105 . 80 . 5 95 15 155 . . . 10 135 30 75 40 225 Destroy Leader 4482 | . 162 30 312 10 278 246 . 468 . 30 . . 20 384 . 458 30 10 . 60 464 40 20 . 50 254 46 302 144 664 Allied During Kill 730 | . . 3 6 . . . . . . 17 . . . 3 . 548 . . . . 97 . . . . . . . 56 . Successful Hack 320 | . 14 . 4 . 4 17 . 12 . . . . . 90 . 74 . . . . 26 . . . . . . . . 79 Select Force Hacks 1050 | . 80 . 240 . 340 210 150 . . . . . . 30 . . . . . . . . . . . . . . . . Disable Machine 2130 | . . . . . 60 15 . 390 . . . . . 345 . 105 . . . . 390 . . . . 45 105 60 240 375 Anti-Garrison Action 750 | . . . . . . . . 300 . . . . . . . . . . . . 150 . . . . 150 . . 150 . Destroy Structure 4629 | . . . 9 . 7 5 2 227 . . . . . 686 26 354 . . . . 820 . . . . 322 134 384 585 1068 Advance Influence 550 | . . . . . . . . 250 . . . . . . . . . . . . 150 . . . . 150 . . . . Partial Spotted 420 | . 15 . . . 15 30 . 75 . . . . . 30 . . . . . . 60 . . . . 30 30 90 . 45 Lose Combat Pursuer 2595 | . 150 . 45 . 60 . . 300 . 30 . . . 75 . 60 . . 960 . 150 . . . . 30 . 60 15 660 Influence Decreases 40993 | 30 449 549 603 866 757 1713 996 579 1878 766 2432 . 210 859 1994 767 2037 758 3358 5625 979 1937 745 2806 140 458 1132 1437 1518 2615 Entered New Map 31641 | . . 359 117 796 311 913 718 245 1738 536 2432 . . 100 1924 317 1839 628 2758 5455 173 1817 615 2786 . 156 962 907 1298 1741 Time Decay 7202 | 30 449 190 486 70 416 350 278 334 140 230 . . 210 559 70 170 198 90 600 170 286 120 130 20 140 302 170 230 190 574 Lost Part 10 | . . . . . . . . . . . . . . . . . . . . . . . . . . . . . 10 . Lost Ally 490 | . . . . . 30 . . . . . . . . 50 . 280 . 40 . . 70 . . . . . . . 20 . Purge Threat 1650 | . . . . . . 450 . . . . . . . 150 . . . . . . 450 . . . . . . 300 . 300 Squads Dispatched 275 | . 10 . 15 . 14 10 . 41 . 1 . . . 20 . 29 . . . . 26 . . . 1 9 7 15 16 61 Investigation 62 | . 9 . 13 . 12 9 . 4 . . . . . 5 . 1 . . . . 1 . . . 1 . 1 2 1 3 Extermination 22 | . . . . . . . . 3 . . . . . 5 . 1 . . . . 1 . . . . 3 . 3 1 5 Reinforcement 37 | . 1 . 1 . 1 . . 5 . . . . . 6 . 4 . . . . 6 . . . . 2 1 2 5 3 Assault 145 | . . . 1 . . . . 28 . 1 . . . 4 . 23 . . . . 18 . . . . 3 5 5 8 49 Garrison 9 | . . . . . 1 1 . 1 . . . . . . . . . . . . . . . . . 1 . 3 1 1 Intercept . | . . . . . . . . . . . . . . . . . . . . . . . . . . . . . . . Searches Triggered . | . . . . . . . . . . . . . . . . . . . . . . . . . . . . . . . Unchained Authorized 5 | . . . . . . . . . . . . . . 2 . . . . . . 2 . . . . 1 . . . . Construction Impeded 5 | . . . . . . . . 2 . . . . . . . . . . . . 1 . . . . . . . 1 1 Haulers Reinforced 7 | . . . . . . . . 3 . . . . . . . . . . . . 2 . . . . 1 . 1 . . Active Scanning Responses . | . . . . . . . . . . . . . . . . . . . . . . . . . . . . . . . Cargo Convoy Interrupts 1 | . . . . . . . . . . . . . . 1 . . . . . . . . . . . . . . . . Stealth | -11 -10 -10 -9 -9 -8 -8 -8 -6 -6 -6 -6 -6 -5 -5 -5 -5 -5 -5 -5 -4 -4 -4 -4 -4 -3 -3 -3 -2 -2 -2 --------- Run | Yrd Mat Min Mat Min Mat Sto Rec Fac Low Low Zio Dee Pro Fac Was Fac Upp Upp War Pro Fac Upp Upp Zhi Pro Res Qua Res Tes Frg Distress Signals 52 | . 6 . 3 . 5 1 . 4 . . . . . 5 . 4 . . 3 . 10 . . . . 6 . 2 1 2 Communications Jammed . | . . . . . . . . . . . . . . . . . . . . . . . . . . . . . . . Distress Signals . | . . . . . . . . . . . . . . . . . . . . . . . . . . . . . . . Times Spotted 2066 | . 51 15 63 3 62 46 6 189 . 16 57 12 16 149 5 167 11 9 354 20 183 7 14 2 28 65 34 68 55 359 Peak Tracking Total 33 | . 6 4 8 3 10 7 2 13 . 9 4 5 5 19 2 22 6 9 24 5 12 3 7 2 10 9 4 9 13 33 Tactical Retreats 81 | . 6 2 2 . 2 . . 11 . 2 . . . 9 . 3 . . 24 . 3 . . . . 1 . 2 1 13 Traps | -11 -10 -10 -9 -9 -8 -8 -8 -6 -6 -6 -6 -6 -5 -5 -5 -5 -5 -5 -5 -4 -4 -4 -4 -4 -3 -3 -3 -2 -2 -2 ------- Run | Yrd Mat Min Mat Min Mat Sto Rec Fac Low Low Zio Dee Pro Fac Was Fac Upp Upp War Pro Fac Upp Upp Zhi Pro Res Qua Res Tes Frg Traps Triggered 46 | . 2 . 2 . 1 4 . 7 . . . . . 3 . 3 . . 3 . 3 . . . . . 1 5 2 10 Indirectly . | . . . . . . . . . . . . . . . . . . . . . . . . . . . . . . . Trap Hack Attempts . | . . . . . . . . . . . . . . . . . . . . . . . . . . . . . . . Triggered . | . . . . . . . . . . . . . . . . . . . . . . . . . . . . . . . Disarmed . | . . . . . . . . . . . . . . . . . . . . . . . . . . . . . . . Reprogrammed . | . . . . . . . . . . . . . . . . . . . . . . . . . . . . . . . Reused . | . . . . . . . . . . . . . . . . . . . . . . . . . . . . . . . Traps Extracted . | . . . . . . . . . . . . . . . . . . . . . . . . . . . . . . . Installed . | . . . . . . . . . . . . . . . . . . . . . . . . . . . . . . . Triggered . | . . . . . . . . . . . . . . . . . . . . . . . . . . . . . . . Time Bombs Activated 1 | . . . . . . . . . . . . . . . . . . . . . . . . 1 . . . . . . Exploded 1 | . . . . . . . . . . . . . . . . . . . . . . . . 1 . . . . . . Machines | -11 -10 -10 -9 -9 -8 -8 -8 -6 -6 -6 -6 -6 -5 -5 -5 -5 -5 -5 -5 -4 -4 -4 -4 -4 -3 -3 -3 -2 -2 -2 ---------- Run | Yrd Mat Min Mat Min Mat Sto Rec Fac Low Low Zio Dee Pro Fac Was Fac Upp Upp War Pro Fac Upp Upp Zhi Pro Res Qua Res Tes Frg Machines Disabled 200 | . . . . . 4 1 . 28 1 . 4 1 1 23 . 9 2 1 10 2 37 . 1 . 1 5 8 4 23 34 Max in Single Turn 18 | . . . . . 3 1 . 18 1 . 3 1 1 5 . 2 2 1 1 1 5 . 1 . 1 3 1 1 2 6 Garrison Access 15 | . . . . . . 1 . 2 . . . . . 1 . 3 . . . . 4 . . . . 2 . . 1 1 Machines Repaired . | . . . . . . . . . . . . . . . . . . . . . . . . . . . . . . . Machines Dismantled . | . . . . . . . . . . . . . . . . . . . . . . . . . . . . . . . Machines Sabotaged 12 | . 1 . 3 . 5 3 . . . . . . . . . . . . . . . . . . . . . . . . Overloaded Fab Kills . | . . . . . . . . . . . . . . . . . . . . . . . . . . . . . . . Hacking | -11 -10 -10 -9 -9 -8 -8 -8 -6 -6 -6 -6 -6 -5 -5 -5 -5 -5 -5 -5 -4 -4 -4 -4 -4 -3 -3 -3 -2 -2 -2 --------- Run | Yrd Mat Min Mat Min Mat Sto Rec Fac Low Low Zio Dee Pro Fac Was Fac Upp Upp War Pro Fac Upp Upp Zhi Pro Res Qua Res Tes Frg Machines Accessed 147 | . 9 . 16 1 13 17 6 3 2 . . . . 18 . 9 2 1 . . 16 1 1 4 1 3 2 8 3 11 Terminals 88 | . 7 . 11 . 8 12 . . . . . . . 13 . 5 1 . . . 11 . . . 1 . 2 6 2 9 Fabricators 10 | . . . . . . . . 1 . . . . . 3 . 1 . . . . 2 . . . . 1 . 1 . 1 Repair Stations 7 | . 1 . 2 . 2 2 . . . . . . . . . . . . . . . . . . . . . . . . Recycling Units 10 | . 1 . 1 . 1 2 5 . . . . . . . . . . . . . . . . . . . . . . . Scanalyzers 5 | . . . 2 . 2 . . . . . . . . 1 . . . . . . . . . . . . . . . . Garrison Access 15 | . . . . . . 1 . 2 . . . . . 1 . 3 . . . . 3 . . . . 2 . 1 1 1 Total Hacks 329 | . 22 . 30 1 25 46 8 9 6 . . . . 43 . 20 6 1 . . 38 1 1 14 4 4 3 15 5 27 Successful 173 | . 11 . 13 1 17 21 7 2 6 . . . . 22 . 11 6 1 . . 17 1 1 14 4 1 1 2 1 13 Failed 154 | . 10 . 17 . 8 25 1 7 . . . . . 21 . 9 . . . . 21 . . . . 3 2 13 4 13 Catastrophic 43 | . . . 8 . 1 5 . 3 . . . . . 2 . 3 . . . . 6 . . . . 1 1 6 3 4 Database Lockouts 2 | . 1 . . . . . . . . . . . . . . . . . . . . . . . . . . . . 1 Manual 195 | . 23 . 27 . 21 36 6 . . . 1 . . 30 . 10 . . . . 15 . . . . . 1 5 1 19 Terminals 213 | . 19 . 25 . 15 38 . . . . . . . 29 . 11 5 . . . 28 . . . 4 . 3 11 3 22 Fabricators 27 | . . . . . . . . 4 . . . . . 10 . 3 . . . . 4 . . . . 1 . 1 . 4 Repair Stations 12 | . 1 . 2 . 6 3 . . . . . . . . . . . . . . . . . . . . . . . . Recycling Units 12 | . 2 . 1 . 1 2 6 . . . . . . . . . . . . . . . . . . . . . . . Scanalyzers 6 | . . . 2 . 3 . . . . . . . . 1 . . . . . . . . . . . . . . . . Garrison Access 32 | . . . . . . 3 . 5 . . . . . 3 . 6 . . . . 6 . . . . 3 . 3 2 1 Terminal Hacks 66 | . 1 . 1 1 3 7 2 . 6 . . . . 4 . 1 6 1 . . 6 1 1 14 4 . . 2 1 4 Record 19 | . . . . . . . . . 5 . . . . . . . 5 . . . . . . 5 4 . . . . . Part Schematic 8 | . . . . . . . . . . . . . . 2 . . . . . . . . . 4 . . . . 1 1 Robot Analysis 2 | . 1 . . . . . . . . . . . . . . . . . . . . . . 1 . . . . . . Prototype ID Bank 6 | . . . 1 . . . . . . . . . . . . . . . . . 1 . . 4 . . . . . . Open Door 10 | . . . . 1 . 4 . . 1 . . . . . . . 1 1 . . . 1 1 . . . . . . . Level Access Points 1 | . . . . . . . . . . . . . . 1 . . . . . . . . . . . . . . . . Branch Access Points 2 | . . . . . 1 . . . . . . . . . . 1 . . . . . . . . . . . . . . Alert Level 2 | . . . . . 1 . . . . . . . . . . . . . . . 1 . . . . . . . . . Unreport Threat 11 | . . . . . . 3 . . . . . . . 1 . . . . . . 3 . . . . . . 2 . 2 Locate Traps 1 | . . . . . . . . . . . . . . . . . . . . . . . . . . . . . . 1 Hauler Manifests 1 | . . . . . 1 . . . . . . . . . . . . . . . . . . . . . . . . . Zone Layout 1 | . . . . . . . . . . . . . . . . . . . . . 1 . . . . . . . . . Release Object 2 | . . . . . . . 2 . . . . . . . . . . . . . . . . . . . . . . . Fabricator Hacks 12 | . . . . . . . . 2 . . . . . 4 . 2 . . . . 2 . . . . . . . . 2 Load Schematic 6 | . . . . . . . . 1 . . . . . 2 . 1 . . . . 1 . . . . . . . . 1 Build 6 | . . . . . . . . 1 . . . . . 2 . 1 . . . . 1 . . . . . . . . 1 Repair Station Hacks . | . . . . . . . . . . . . . . . . . . . . . . . . . . . . . . . Recycling Unit Hacks . | . . . . . . . . . . . . . . . . . . . . . . . . . . . . . . . Scanalyzer . | . . . . . . . . . . . . . . . . . . . . . . . . . . . . . . . Garrison Access Hacks 10 | . . . . . . 1 . . . . . . . 1 . 3 . . . . 3 . . . . 1 . . . 1 Seal Access 10 | . . . . . . 1 . . . . . . . 1 . 3 . . . . 3 . . . . 1 . . . 1 Unauthorized Hacks 85 | . 10 . 12 . 14 13 5 . . . . . . 13 . 5 . . . . 6 . . . . . 1 . . 6 Terminals 62 | . 8 . 7 . 9 9 . . . . . . . 11 . 5 . . . . 6 . . . . . 1 . . 6 Assimilate 4 | . . . . . 1 . . . . . . . . 1 . 1 . . . . 1 . . . . . . . . . Botnet 37 | . 3 . 1 . 2 5 . . . . . . . 10 . 4 . . . . 5 . . . . . 1 . . 6 Sabotage 21 | . 5 . 6 . 6 4 . . . . . . . . . . . . . . . . . . . . . . . . Fabricators 1 | . . . . . . . . . . . . . . 1 . . . . . . . . . . . . . . . . Haulers 1 | . . . . . . . . . . . . . . 1 . . . . . . . . . . . . . . . . Repair Stations 7 | . 1 . 2 . 2 2 . . . . . . . . . . . . . . . . . . . . . . . . Patch 7 | . 1 . 2 . 2 2 . . . . . . . . . . . . . . . . . . . . . . . . Recycling Units 10 | . 1 . 1 . 1 2 5 . . . . . . . . . . . . . . . . . . . . . . . Tunnel 10 | . 1 . 1 . 1 2 5 . . . . . . . . . . . . . . . . . . . . . . . Scanalyzers 5 | . . . 2 . 2 . . . . . . . . 1 . . . . . . . . . . . . . . . . Extract 5 | . . . 2 . 2 . . . . . . . . 1 . . . . . . . . . . . . . . . . Garrison Access . | . . . . . . . . . . . . . . . . . . . . . . . . . . . . . . . Data Cores Recovered 3 | . . . . . . . . . . . . . . 1 . . . . . . . . . . . . 1 1 . . Used 1 | . . . . . . . . . . . . . . . . . . . . . . . . . . . . 1 . . Hacking Detections 88 | . 5 . 5 . 3 10 . 3 . . . . . 13 . 9 1 . . . 15 . . . 1 2 1 8 3 9 Full Trace Events 25 | . 2 . 5 . . 1 . 3 . . . . . 3 . 1 1 . . . 1 . . . 1 . 1 2 1 3 Feedback Events . | . . . . . . . . . . . . . . . . . . . . . . . . . . . . . . . Feedback Blocked . | . . . . . . . . . . . . . . . . . . . . . . . . . . . . . . . Robot Schematics Acquired 55 | . . . . . . . . . . . . . . 54 . . . . . . . . . . . . . . . 1 Robots Built 2 | . . . . . . . . . . . . . . . . . . . . . 2 . . . . . . . . . Authchips . | . . . . . . . . . . . . . . . . . . . . . . . . . . . . . . . Time 204 | . . . . . . . . . . . . . . . . . . . . . 204 . . . . . . . . . Total Robot Build Rating 16 | . . . . . . . . . . . . . . . . . . . . . 16 . . . . . . . . . Part Schematics Acquired 58 | . . . 5 . 12 . . . . . . . . 4 . . . . . . . . . 4 . . 11 . 14 8 Parts Built 9 | . . . . . . . . 2 . . . . . 4 . 2 . . . . . . . . . . . . . 1 Authchips . | . . . . . . . . . . . . . . . . . . . . . . . . . . . . . . . Time 239 | . . . . . . . . 36 . . . . . 94 . 47 . . . . . . . . . . . . . 62 Total Part Build Rating 43 | . . . . . . . . 6 . . . . . 20 . 10 . . . . . . . . . . . . . 7 Part Studies Acquired . | . . . . . . . . . . . . . . . . . . . . . . . . . . . . . . . Parts Repaired . | . . . . . . . . . . . . . . . . . . . . . . . . . . . . . . . Time . | . . . . . . . . . . . . . . . . . . . . . . . . . . . . . . . Parts Recycled . | . . . . . . . . . . . . . . . . . . . . . . . . . . . . . . . Recycled Matter . | . . . . . . . . . . . . . . . . . . . . . . . . . . . . . . . Retrieved Matter . | . . . . . . . . . . . . . . . . . . . . . . . . . . . . . . . Retrieved Components . | . . . . . . . . . . . . . . . . . . . . . . . . . . . . . . . Parts Scanalyzed . | . . . . . . . . . . . . . . . . . . . . . . . . . . . . . . . Part Schematics Acquired . | . . . . . . . . . . . . . . . . . . . . . . . . . . . . . . . Parts Damaged . | . . . . . . . . . . . . . . . . . . . . . . . . . . . . . . . Bothacking | -11 -10 -10 -9 -9 -8 -8 -8 -6 -6 -6 -6 -6 -5 -5 -5 -5 -5 -5 -5 -4 -4 -4 -4 -4 -3 -3 -3 -2 -2 -2 ------------ Run | Yrd Mat Min Mat Min Mat Sto Rec Fac Low Low Zio Dee Pro Fac Was Fac Upp Upp War Pro Fac Upp Upp Zhi Pro Res Qua Res Tes Frg Used RIF Installer . | . . . . . . . . . . . . . . . . . . . . . . . . . . . . . . . Robots Hacked 2 | . . . . . . . . . . . . . . 1 . . . . . . 1 . . . . . . . . . Non-combat 2 | . . . . . . . . . . . . . . 1 . . . . . . 1 . . . . . . . . . Combat . | . . . . . . . . . . . . . . . . . . . . . . . . . . . . . . . Robot Hacks Applied 2 | . . . . . . . . . . . . . . 1 . . . . . . 1 . . . . . . . . . find_chute 2 | . . . . . . . . . . . . . . 1 . . . . . . 1 . . . . . . . . . Relay Couplers Released 4 | . . . . . . . . 2 . . . . . . . . . . . . 2 . . . . . . . . . Machine Destruction 3 | . . . . . . . . 2 . . . . . . . . . . . . 1 . . . . . . . . . Programmers 1 | . . . . . . . . . . . . . . . . . . . . . 1 . . . . . . . . . Fabnet Peak Effective % . | . . . . . . . . . . . . . . . . . . . . . . . . . . . . . . . Robots Rewired 10 | . . . . . . . . . . 2 . . 2 . . . . 2 . 2 . . . . . . . . 2 . Allies Hacked 2 | . . . . . . . . . . . . . . . . 2 . . . . . . . . . . . . . . Hacks Repelled . | . . . . . . . . . . . . . . . . . . . . . . . . . . . . . . . Allies | -11 -10 -10 -9 -9 -8 -8 -8 -6 -6 -6 -6 -6 -5 -5 -5 -5 -5 -5 -5 -4 -4 -4 -4 -4 -3 -3 -3 -2 -2 -2 -------- Run | Yrd Mat Min Mat Min Mat Sto Rec Fac Low Low Zio Dee Pro Fac Was Fac Upp Upp War Pro Fac Upp Upp Zhi Pro Res Qua Res Tes Frg Total Allies 39 | . . 1 . 1 1 . . . . 2 2 . 2 1 19 1 . 2 . 2 3 . . . . . . . 2 . Largest Group 19 | . . 1 1 1 2 . . . . 2 4 . 2 2 19 19 . 2 . 2 2 . . . . . . . 1 . Highest-Rated Group 684 | . . 31 31 31 41 . . . . 52 244 . 78 78 684 684 . 60 . 96 164 . . . . . . . 123 . Highest-Rated Ally 123 | . . 31 31 31 31 . . . . 32 96 . 49 49 50 50 . 30 . 49 82 . . . . . . . 123 . Total Orders 3 | . . . . . . . . . . . . . . 1 . . . . . 1 . . . . . . . . 1 . STAY 3 | . . . . . . . . . . . . . . 1 . . . . . 1 . . . . . . . . 1 . Ally Attacks 229 | . . 6 1 . 6 . . . . . 62 . . 5 . 117 . . . . 17 . . . . . . . 15 . Total Damage 8318 | . . 44 22 . 85 . . . . . 1727 . . 123 . 2648 . . . . 724 . . . . . . . 2945 . Kills 54 | . . 1 1 . 1 . . . . . 19 . . . . 16 . . . . 2 . . . . . . . 14 . Allies Corrupted 1 | . . . . . . . . . . . . . . . . 1 . . . . . . . . . . . . . . Allies Melted 1 | . . . . . . . . . . . . . . . . 1 . . . . . . . . . . . . . . Intel | -11 -10 -10 -9 -9 -8 -8 -8 -6 -6 -6 -6 -6 -5 -5 -5 -5 -5 -5 -5 -4 -4 -4 -4 -4 -3 -3 -3 -2 -2 -2 ------- Run | Yrd Mat Min Mat Min Mat Sto Rec Fac Low Low Zio Dee Pro Fac Was Fac Upp Upp War Pro Fac Upp Upp Zhi Pro Res Qua Res Tes Frg Active Infowar (turns) 19221 | 23 1411 393 1274 156 1001 790 615 2099 282 489 478 425 589 1662 152 1146 407 183 1988 340 1214 241 278 232 298 676 379 . . . Optics 2 | . . . . . . . . . . . . . . . . . . . 2 . . . . . . . . . . . Terrain 5201 | 7 1411 393 1274 156 1001 790 169 . . . . . . . . . . . . . . . . . . . . . . . Seismic 18422 | 23 1411 393 1274 156 1001 790 615 2099 282 489 478 425 589 1662 152 1146 407 183 1988 340 1214 241 278 232 298 256 . . . . Triangulation 7365 | . . . . . . . . 1043 282 489 478 423 589 1662 152 488 . . . 213 747 . . . . 420 379 . . . Cloaking 2 | . . . . . . . . . . . . . . . . . . . 2 . . . . . . . . . . . Jamming 2 | . . . . . . . . . . . . . . . . . . . . . . . . 2 . . . . . . Robot Analysis Total 102 | . 1 . . . . . . . . . . . . 100 . . . . . . . . . 1 . . . . . . Derelict Logs Recovered 25 | . . 2 . 1 . . . . 2 3 2 . 2 . . . 1 3 . 3 . 3 3 . . . . . . . Drone Launches . | . . . . . . . . . . . . . . . . . . . . . . . . . . . . . . . Drone Recoveries . | . . . . . . . . . . . . . . . . . . . . . . . . . . . . . . . Exploration | -11 -10 -10 -9 -9 -8 -8 -8 -6 -6 -6 -6 -6 -5 -5 -5 -5 -5 -5 -5 -4 -4 -4 -4 -4 -3 -3 -3 -2 -2 -2 ------------- Run | Yrd Mat Min Mat Min Mat Sto Rec Fac Low Low Zio Dee Pro Fac Was Fac Upp Upp War Pro Fac Upp Upp Zhi Pro Res Qua Res Tes Frg Turns Passed 23309 | 125 1411 393 1274 156 1001 790 615 2099 282 489 478 425 589 1662 152 1146 407 183 1988 340 1214 241 278 232 298 676 462 616 506 2781 Spaces Moved 43122 | 80 1056 650 2243 528 1177 1168 988 3792 1187 1070 948 1131 1117 3513 311 1789 920 657 2646 882 2839 900 1057 296 982 1205 1203 1654 1028 4105 Core 39 | 39 . . . . . . . . . . . . . . . . . . . . . . . . . . . . . . Treads . | . . . . . . . . . . . . . . . . . . . . . . . . . . . . . . . Legs . | . . . . . . . . . . . . . . . . . . . . . . . . . . . . . . . Wheels 502 | 41 461 . . . . . . . . . . . . . . . . . . . . . . . . . . . . . Hover . | . . . . . . . . . . . . . . . . . . . . . . . . . . . . . . . Flight 42581 | . 595 650 2243 528 1177 1168 988 3792 1187 1070 948 1131 1117 3513 311 1789 920 657 2646 882 2839 900 1057 296 982 1205 1203 1654 1028 4105 Fastest Speed 5 | 50 34 34 26 26 26 26 26 23 23 23 23 23 23 12 21 21 21 21 5 23 5 23 23 23 23 5 23 5 5 5 Average Speed 23 | 80 56 34 27 26 26 26 26 23 23 23 23 23 23 22 21 21 21 21 23 23 22 23 23 23 23 21 23 22 21 19 Slowest Speed 125 | 100 125 34 34 26 26 26 26 26 23 23 23 23 23 23 21 21 97 21 103 109 23 23 23 23 23 23 23 23 109 20 Overloaded Moves 344 | . . . . . . . . . . . . . . 39 . . . . 7 . 71 . . . . 81 . 28 3 115 Propulsion Burnouts . | . . . . . . . . . . . . . . . . . . . . . . . . . . . . . . . Robots Hopped 423 | . 10 10 61 4 20 30 11 22 2 4 . . . 57 . 22 1 1 2 2 51 . 2 1 . 30 18 34 14 14 Potential Cave-ins 8 | . . . . . . . . . . . . . . . . . . . . 2 2 . . . 2 . . 2 . . Cave-ins Triggered 1 | . . . . . . . . . . . . . . . . . . . . 1 . . . . . . . . . . Exploration Rate (%) 83 | 6 98 98 97 98 85 96 99 80 98 96 82 88 94 85 89 49 96 83 95 97 71 97 97 74 97 24 95 55 96 72 Regions Visited 30 Branch Regions 20 Pre-discovered Areas 20 | . 1 2 1 . 1 2 5 . 1 1 . . . . . . . 1 . 1 . 1 . 3 . . . . . . Known Exits Taken 16 | . . . . . 1 . . 1 1 1 . . 1 . . 1 . . . 1 1 1 1 1 1 1 1 1 1 . Unknown Exits Taken 12 | 1 1 1 1 1 . 1 1 . . . 1 1 . . . . 1 1 1 . . . . . . . . . . . Scrap Searched 29 | . . 1 . 2 . . . . 3 2 1 . 2 . . . 4 3 . 1 . 3 4 . 3 . . . . . Spaces Dug 246 | . . . . . . . 1 6 1 1 . . 10 39 . 16 6 6 18 . 71 . . 4 8 7 11 21 7 13 Terrain Destroyed 3049 | . . . . . . . 1 260 1 6 16 37 37 399 16 177 44 28 393 73 486 23 25 9 96 174 84 139 157 368 Melee . | . . . . . . . . . . . . . . . . . . . . . . . . . . . . . . . Projectile 1575 | . . . . . . . 1 86 1 6 12 14 28 157 3 123 20 26 266 43 173 15 19 9 53 88 63 99 79 191 AOE 1474 | . . . . . . . . 174 . . 4 23 9 242 13 54 24 2 127 30 313 8 6 . 43 86 21 40 78 177 Terrain Rammed . | . . . . . . . . . . . . . . . . . . . . . . . . . . . . . . . Walls Destroyed . | . . . . . . . . . . . . . . . . . . . . . . . . . . . . . . . Machines Disabled . | . . . . . . . . . . . . . . . . . . . . . . . . . . . . . . . Actions | -11 -10 -10 -9 -9 -8 -8 -8 -6 -6 -6 -6 -6 -5 -5 -5 -5 -5 -5 -5 -4 -4 -4 -4 -4 -3 -3 -3 -2 -2 -2 --------- Run | Yrd Mat Min Mat Min Mat Sto Rec Fac Low Low Zio Dee Pro Fac Was Fac Upp Upp War Pro Fac Upp Upp Zhi Pro Res Qua Res Tes Frg Total 54050 | 106 1676 742 2675 536 1688 1469 1315 4693 1191 1265 1118 1278 1438 4246 393 2448 1123 695 3857 1001 3338 934 1090 452 1056 1594 1364 1865 1289 6115 Wait 6126 | . 478 38 354 2 358 141 296 256 . 95 26 91 274 513 51 400 175 13 589 41 225 10 18 119 17 268 70 50 83 1075 Move 42292 | 79 1037 629 2127 519 1138 1112 965 3748 1182 1062 947 1130 1116 3407 310 1746 917 654 2641 876 2742 899 1052 293 981 1146 1166 1593 1000 4078 Hop 377 | . 8 10 54 4 18 25 11 21 2 3 . . . 49 . 20 1 1 2 2 45 . 2 1 . 28 18 26 13 13 Pick Up 110 | . 1 2 3 1 12 1 2 28 2 7 2 5 6 7 2 4 1 . 3 . 5 . . 1 . 3 1 1 2 8 Fast Attach 61 | 8 3 . 5 . 1 1 1 6 1 . . . . 4 . . 1 . 4 . 4 . . 1 . 1 8 . 5 7 Attach 10 | . . . 1 . . . . 3 . . . . 1 1 . 1 . . . 1 1 . . . . . . . 1 . Detach 2 | . . . . . . . . 1 . . . . . 1 . . . . . . . . . . . . . . . . Swap 208 | . 11 2 7 2 5 9 . 11 1 . 2 7 2 11 . 2 2 . 35 3 12 . . 22 . 7 8 3 12 32 Drop 158 | . 6 2 8 1 11 1 13 33 1 6 2 5 6 11 3 3 . . 10 1 5 . . 6 . 3 5 . 4 12 Fire 2611 | 19 101 36 90 3 100 88 16 388 2 60 115 19 17 115 9 138 11 10 342 25 158 13 13 8 27 74 38 74 65 437 Melee 2 | . . . . . . . . . . . . . . . . . . . . . 2 . . . . . . . . . Ram . | . . . . . . . . . . . . . . . . . . . . . . . . . . . . . . . Kick . | . . . . . . . . . . . . . . . . . . . . . . . . . . . . . . . Crush . | . . . . . . . . . . . . . . . . . . . . . . . . . . . . . . . Escape Stasis 375 | . . . . . . 60 . 21 . . . . . . . 30 . . . 1 15 . . . . . . 45 23 180 Rewire 73 | . . . . . . . . . . 7 . . 7 . . . . 14 . 19 . . . . . . . . 26 . Trap 1 | . . . . . . . . . . . . . . . . . . . . . . . . 1 . . . . . . Miscellaneous 1644 | . 31 23 26 4 45 31 11 177 . 25 24 21 9 127 18 104 15 3 231 32 124 12 5 . 31 64 50 73 55 273 Route ------- -11/Scrapyard -10/Materials (discovered 4 exits: *Mat x2 / [*Min] / [*Sub]) -10/Mines (discovered 2 exits: *Mat x2) -9/Materials (discovered 4 exits: *Mat x3 / *Min) -9/Mines (discovered 3 exits: *Mat x2 / [*Exi]) -8/Materials (discovered 4 exits: [*Fac x2] / *Sto x2) -8/Storage (discovered 2 exits: [*Fac] / *Rec) -8/Recycling -6/Factory (discovered 5 exits: *Fac x3 / *Low x2) -6/Lower Caves -6/Lower Caves (discovered 2 exits: *Fac / *Zio) -6/Zion (discovered 2 exits: [*Dee] / [*Pro]) -6/Deep Caves -5/Proximity Caves -5/Factory (discovered 5 exits: *Fac x4 / *Upp) -5/Waste -5/Factory (discovered 6 exits: *Fac x4 / *Upp x2) -5/Upper Caves -5/Upper Caves (discovered 2 exits: *Fac / *War) -5/Warlord -4/Proximity Caves -4/Factory (discovered 7 exits: *Res x4 / *Upp x2 / [*Ext]) -4/Upper Caves -4/Upper Caves (discovered 2 exits: *Res / *Zhi) -4/Zhirov -3/Proximity Caves -3/Research (discovered 4 exits: *Res x2 / *Qua x2) -3/Quarantine -2/Research (discovered 3 exits: *Acc x2 / *Tes) -2/Testing (discovered 3 exits: *Acc / *Sec / *Frg) -2/Protoforge (discovered 1 exit: *Acc) History --------- Turn | Location | Event 3 | -11/Scrapyard | Discovered new exit (range 16) 14 | -11/Scrapyard | Upgraded with Power slot (x1) 14 | -11/Scrapyard | Upgraded with Propulsion slot (x1) 14 | -11/Scrapyard | Upgraded with Utility slot (x1) 14 | -11/Scrapyard | Upgraded with Weapon slot (x1) 126 | -11/Scrapyard | Entered Materials 358 | -10/Materials | Discovered new exit (range 11) 536 | -10/Materials | Build established: Scavenger-Mutant 538 | -10/Materials | Reached level 2 631 | -10/Materials | Discovered new exit (range 16) 698 | -10/Materials | Central database locked down 726 | -10/Materials | Derelicts attacked the area 740 | -10/Materials | Discovered new exit (range 9) 750 | -10/Materials | Core integrity fell below 50% 988 | -10/Materials | Upgraded with Propulsion slot (x1) 1023 | -10/Materials | Reached level 3 1062 | -10/Materials | Core integrity fell below 20% 1085 | -10/Materials | Upgraded with Utility slot (x1) 1110 | -10/Materials | Destroyed 8 combat bots 1246 | -10/Materials | Discovered new exit (range 16) 1537 | -10/Materials | Entered Mines 1539 | -10/Mines | Reached level 4 1545 | -10/Mines | Assembled infested the area 1545 | -10/Mines | Discovered new exit (range 4) 1574 | -10/Mines | Learned location of Mines (-8) 1580 | -10/Mines | Discovered new exit (range 7) 1638 | -10/Mines | Received a Mining Laser from a helpful Derelict 1681 | -10/Mines | Joined a pair of Derelicts in attacking an 0b10 outpost 1930 | -10/Mines | Entered Materials 1930 | -9/Materials | Accompanied by 1 ally 1932 | -9/Materials | Reached level 5 1953 | -9/Materials | Upgraded with Utility slot (x1) 1980 | -9/Materials | Discovered new exit (range 9) 1993 | -9/Materials | Reached level 6 2048 | -9/Materials | Upgraded with Weapon slot (x1) 2202 | -9/Materials | Reached level 7 2247 | -9/Materials | Discovered new exit (range 8) 2265 | -9/Materials | Upgraded with Propulsion slot (x1) 2265 | -9/Materials | Upgraded with Weapon slot (x1) 2391 | -9/Materials | Build established: Scavenger-Sprinter 2440 | -9/Materials | Reached level 8 2458 | -9/Materials | Upgraded with Utility slot (x1) 2479 | -9/Materials | Discovered new exit (range 16) 2495 | -9/Materials | Destroyed 7 combat bots 2612 | -9/Materials | Reached level 9 2716 | -9/Materials | Discovered new exit (range 3) 2730 | -9/Materials | First assault squad dispatched 3100 | -9/Materials | Sterilization system engaged 3100 | -9/Materials | Non-combat units ordered to evacuate 3200 | -9/Materials | Combat units ordered to evacuate 3204 | -9/Materials | Entered Mines 3208 | -9/Mines | Discovered new exit (range 7) 3241 | -9/Mines | Learned Materials stockpile data 3292 | -9/Mines | Found the Drone Emporium 3292 | -9/Mines | Found Prototype Device 3292 | -9/Mines | Identified Splice Drone Bay 3302 | -9/Mines | Deemed a non-threat by the Exiles lab entrance 3302 | -9/Mines | Discovered new exit (range 5) 3340 | -9/Mines | Reached level 10 3342 | -9/Mines | Received a Rocket Launcher from a helpful Derelict 3359 | -9/Mines | Escorted by a lone wolf Derelict 3359 | -9/Mines | Discovered new exit (range 7) 3360 | -9/Mines | Entered Materials 3360 | -8/Materials | Accompanied by 1 ally 3362 | -8/Materials | Reached level 11 3434 | -8/Materials | Identified exit to Storage 3521 | -8/Materials | Discovered new exit (range 13) 3554 | -8/Materials | Reached level 12 3575 | -8/Materials | Discovered new exit (range 11) 3578 | -8/Materials | Destroyed 11 combat bots 3722 | -8/Materials | Build established: Sprinter 3744 | -8/Materials | Reached level 13 3755 | -8/Materials | Garrison activated, responded to threat 3795 | -8/Materials | Upgraded with Utility slot (x1) 4039 | -8/Materials | Sterilization system engaged 4039 | -8/Materials | Non-combat units ordered to evacuate 4042 | -8/Materials | Destroyed 8 combat bots 4139 | -8/Materials | Combat units ordered to evacuate 4165 | -8/Materials | Build established: Scavenger-Sprinter 4339 | -8/Materials | Ambient heat levels rising (+10) 4361 | -8/Materials | Entered Storage 4363 | -8/Storage | Reached level 14 4469 | -8/Storage | Garrison activated, responded to threat 4539 | -8/Storage | Destroyed 10 combat bots 4595 | -8/Storage | Discovered new exit (range 9) 4677 | -8/Storage | Used back door to open Recycling access 4677 | -8/Storage | Discovered new exit (range 5) 4935 | -8/Storage | Destroyed 7 combat bots 5096 | -8/Storage | Reached level 15 5151 | -8/Storage | Entered Recycling 5295 | -8/Recycling | Scanned before Scraplab entrance 5306 | -8/Recycling | Discovered new exit (range 16) 5319 | -8/Recycling | Entered Scraplab 5320 | -8/Recycling | Angered Scraplab inhabitants 5321 | -8/Recycling | Found Prototype Device 5321 | -8/Recycling | Identified Scrap Engine 5629 | -8/Recycling | Build established: Sprinter 5766 | -8/Recycling | Entered Factory 5768 | -6/Factory | Reached level 16 5780 | -6/Factory | Upgraded with Propulsion slot (x1) 5956 | -6/Factory | Discovered new exit (range 15) 5985 | -6/Factory | Garrison activated, responded to threat 6030 | -6/Factory | Reached level 17 6033 | -6/Factory | Core integrity fell below 50% 6078 | -6/Factory | Destroyed 9 combat bots 6116 | -6/Factory | First assault squad dispatched 6126 | -6/Factory | Reached level 18 6130 | -6/Factory | Fabricated Imp. Signal Interpreter? 6174 | -6/Factory | Core integrity fell below 20% 6238 | -6/Factory | Destroyed 12 combat bots 6299 | -6/Factory | Discovered new exit (range 15) 6384 | -6/Factory | Discovered new exit (range 16) 6470 | -6/Factory | Reached level 19 6477 | -6/Factory | Upgraded with Utility slot (x1) 6524 | -6/Factory | High security lockdown imminent 6593 | -6/Factory | Destroyed 16 combat bots 6597 | -6/Factory | Discovered new exit (range 7) 6604 | -6/Factory | High security lockdown engaged 6629 | -6/Factory | Reached level 20 6772 | -6/Factory | Destroyed 17 combat bots 6937 | -6/Factory | Destroyed 8 combat bots 7003 | -6/Factory | Reached level 21 7082 | -6/Factory | Destroyed 20 combat bots 7199 | -6/Factory | Destroyed 15 combat bots 7223 | -6/Factory | Sterilization system engaged 7223 | -6/Factory | Non-combat units ordered to evacuate 7258 | -6/Factory | Destroyed 8 combat bots 7323 | -6/Factory | Combat units ordered to evacuate 7523 | -6/Factory | Ambient heat levels rising (+10) 7539 | -6/Factory | Discovered new exit (range 10) 7673 | -6/Factory | Ambient heat levels rising (+10) 7757 | -6/Factory | Identified exit to Factory 7823 | -6/Factory | Ambient heat levels rising (+10) 7865 | -6/Factory | Identified exit to Lower Caves 7865 | -6/Factory | Entered Lower Caves 7884 | -6/Lower Caves | Entered an active Warlord outpost 7891 | -6/Lower Caves | Learned Extension garrison access intel 7904 | -6/Lower Caves | Learned Factory garrison access intel 7934 | -6/Lower Caves | Learned location of 1 exit from Factory 7950 | -6/Lower Caves | Discovered new exit (range 10) 7952 | -6/Lower Caves | Identified exit to Lower Caves 7958 | -6/Lower Caves | Found Alien Artifact 7958 | -6/Lower Caves | Identified Dimensional Node Initializer 7958 | -6/Lower Caves | Initialized slip node 8147 | -6/Lower Caves | Entered another Lower Caves area 8156 | -6/Lower Caves | Discovered exit to Factory (range 3) 8258 | -6/Lower Caves | Attracted the attention of an 0b10 outpost 8293 | -6/Lower Caves | Learned Factory emergency access door positions 8295 | -6/Lower Caves | Learned location of Zion (-6) 8341 | -6/Lower Caves | Spotted B-75 Beast 8350 | -6/Lower Caves | Destroyed B-75 Beast 8413 | -6/Lower Caves | Learned Factory terminal intel 8461 | -6/Lower Caves | Discovered new exit (range 9) 8462 | -6/Lower Caves | Identified exit to Zion 8545 | -6/Lower Caves | Encountered a Warlord checkpoint 8636 | -6/Lower Caves | Entered Zion 8636 | -6/Zion | Accompanied by 2 allies 8645 | -6/Zion | Given A8's code to call for help 8645 | -6/Zion | Discovered new exit (range 16) 8649 | -6/Zion | Received a hallucinogenic algorithm 8663 | -6/Zion | Attacked by Zionites 8663 | -6/Zion | Spotted 3D-KTI(B) 8663 | -6/Zion | Spotted 84-GG2(B) 8691 | -6/Zion | Allies destroyed 3D-KTI(B) 8701 | -6/Zion | Destroyed 84-GG2(B) 8725 | -6/Zion | Enhanced Grunt warped into view, answering call for help 8737 | -6/Zion | Enhanced Grunt warped into view, answering call for help 8748 | -6/Zion | Allies destroyed Imprinter 8750 | -6/Zion | Extracted access codes from Imprinter's data core 8911 | -6/Zion | Learned Factory terminal intel 9079 | -6/Zion | Learned Factory emergency access door positions 9114 | -6/Zion | Discovered new exit (range 4) 9114 | -6/Zion | Saw the warning signs outside the Deep Caves entrance 9114 | -6/Zion | Entered Deep Caves 9187 | -6/Deep Caves | Destroyed 9 combat bots 9218 | -6/Deep Caves | Spotted AG-49633 9226 | -6/Deep Caves | Build established: Scavenger-Sprinter 9262 | -6/Deep Caves | Destroyed AG-49633 9268 | -6/Deep Caves | Spotted AG-11516 9308 | -6/Deep Caves | Destroyed AG-11516 9317 | -6/Deep Caves | Found Prototype Processor 9317 | -6/Deep Caves | Identified 0b10 Alert Chip 9536 | -6/Deep Caves | Discovered new exit (range 7) 9539 | -6/Deep Caves | Entered Proximity Caves 9541 | -5/Proximity Caves | Reached level 22 9542 | -5/Proximity Caves | Upgraded with Weapon slot (x1) 9714 | -5/Proximity Caves | Learned location of 1 exit from Factory 9819 | -5/Proximity Caves | Learned Factory garrison access intel 9840 | -5/Proximity Caves | Attracted the attention of an 0b10 checkpoint 9869 | -5/Proximity Caves | Destroyed 14 combat bots 9896 | -5/Proximity Caves | Discovered exit to Factory (range 15) 10128 | -5/Proximity Caves | Entered Factory 10128 | -5/Factory | Accompanied by 2 allies 10129 | -5/Factory | Identified exit to Factory 10129 | -5/Factory | Identified exit to Upper Caves 10130 | -5/Factory | Reached level 23 10131 | -5/Factory | Loaded intel: 26 terminal locations 10132 | -5/Factory | Loaded intel: 4 garrison access locations 10252 | -5/Factory | Fabricated Imp. Cryofiber Web (x2) 10327 | -5/Factory | Unchained authorized (CL-0N3) 10334 | -5/Factory | Discovered exit to Factory (range 4) 10348 | -5/Factory | Discovered exit to Factory (range 11) 10421 | -5/Factory | Spotted B-75 Beast 10428 | -5/Factory | Destroyed B-75 Beast 10457 | -5/Factory | K-01 Serf reconstituted as H-81 Overseer 10457 | -5/Factory | H-81 Overseer reconstituted as CL-0N3 10462 | -5/Factory | Destroyed CL-0N3 10464 | -5/Factory | Extracted schematics, analyses from CL-0N3's data core 10591 | -5/Factory | Destroyed 8 combat bots 10728 | -5/Factory | First assault squad dispatched 10730 | -5/Factory | Destroyed 8 combat bots 10789 | -5/Factory | Reached level 24 10800 | -5/Factory | Upgraded with Utility slot (x1) 10880 | -5/Factory | Fabricated Adv. Heat Sink (x2) 10966 | -5/Factory | Cargo convoy interrupted 10971 | -5/Factory | Core integrity fell below 50% 11009 | -5/Factory | Destroyed 13 combat bots 11081 | -5/Factory | Unchained authorized (GL-D0S) 11405 | -5/Factory | Destroyed GL-D0S 11538 | -5/Factory | Destroyed 10 combat bots 11626 | -5/Factory | Destroyed 7 combat bots 11776 | -5/Factory | Reached level 25 11776 | -5/Factory | High security lockdown imminent 11790 | -5/Factory | Sucked down chute 11790 | -5/Factory | Entered Waste 11792 | -5/Waste | Spotted C-40 Crusher 11792 | -5/Waste | Spotted C-40 Crusher 11793 | -5/Waste | Destroyed C-40 Crusher 11795 | -5/Waste | Spotted C-40 Crusher 11797 | -5/Waste | Destroyed C-40 Crusher 11800 | -5/Waste | Destroyed C-40 Crusher 11802 | -5/Waste | Spotted C-40 Crusher 11812 | -5/Waste | Destroyed C-40 Crusher 11821 | -5/Waste | Spotted C-40 Crusher 11822 | -5/Waste | Destroyed C-40 Crusher 11831 | -5/Waste | Discovered new exit (range 12) 11839 | -5/Waste | Warlord forces began an assault 11843 | -5/Waste | Destroyed 9 combat bots 11851 | -5/Waste | Spotted C-40 Crusher 11853 | -5/Waste | Destroyed C-40 Crusher 11942 | -5/Waste | Entered Factory 11942 | -5/Factory | Accompanied by 19 allies 11944 | -5/Factory | Loaded intel: 24 terminal locations 11945 | -5/Factory | Loaded intel: 3 garrison access locations 12006 | -5/Factory | Destroyed 8 combat bots 12069 | -5/Factory | Fabricated Adv. Heat Sink (x2) 12127 | -5/Factory | Lost 3 allies 12149 | -5/Factory | Discovered exit to Factory (range 15) 12184 | -5/Factory | Destroyed 18 combat bots 12242 | -5/Factory | First assault squad dispatched 12298 | -5/Factory | High security lockdown imminent 12349 | -5/Factory | Discovered exit to Factory (range 8) 12378 | -5/Factory | High security lockdown engaged 12404 | -5/Factory | Discovered exit to Factory (range 4) 12453 | -5/Factory | Discovered exit to Factory (range 10) 12459 | -5/Factory | Core integrity fell below 20% 12472 | -5/Factory | Reached level 26 12505 | -5/Factory | Destroyed 36 combat bots 12587 | -5/Factory | Upgraded with Utility slot (x1) 12593 | -5/Factory | Destroyed 16 combat bots 12602 | -5/Factory | Lost 3 allies 12773 | -5/Factory | Destroyed 15 combat bots 12849 | -5/Factory | Sterilization system engaged 12849 | -5/Factory | Non-combat units ordered to evacuate 12882 | -5/Factory | Destroyed 11 combat bots 12949 | -5/Factory | Combat units ordered to evacuate 13066 | -5/Factory | Destroyed 19 combat bots 13088 | -5/Factory | Entered Upper Caves 13117 | -5/Upper Caves | Learned location of 1 exit from Research 13117 | -5/Upper Caves | Learned 8 Research zone layouts 13117 | -5/Upper Caves | Learned Research stockpile data 13138 | -5/Upper Caves | Destroyed 7 combat bots 13300 | -5/Upper Caves | Learned 8 Factory zone layouts 13317 | -5/Upper Caves | Attracted the attention of an 0b10 checkpoint 13480 | -5/Upper Caves | Discovered new exit (range 11) 13495 | -5/Upper Caves | Entered another Upper Caves area 13515 | -5/Upper Caves | Discovered exit to Factory (range 8) 13539 | -5/Upper Caves | Destroyed 9 combat bots 13626 | -5/Upper Caves | Learned location of Armory (-3) 13629 | -5/Upper Caves | Discovered new exit (range 9) 13636 | -5/Upper Caves | Encountered a Warlord checkpoint 13644 | -5/Upper Caves | Learned Factory emergency access door positions 13661 | -5/Upper Caves | Learned Factory garrison access intel 13678 | -5/Upper Caves | Entered Warlord 13685 | -5/Warlord | Discovered new exit (range 8) 13701 | -5/Warlord | Warlord's base attacked by MAIN.C 13712 | -5/Warlord | Opened side exit 13715 | -5/Warlord | Attacked by Warlord forces 13776 | -5/Warlord | System corruption reached 10% 13830 | -5/Warlord | Spotted L4-AAU(B) 13830 | -5/Warlord | Spotted ZI-PJ0(B) 13841 | -5/Warlord | Destroyed ZI-PJ0(B) 13844 | -5/Warlord | Destroyed L4-AAU(B) 13890 | -5/Warlord | Spotted 5A-W9C(g) 13890 | -5/Warlord | Destroyed 5A-W9C(g) 13942 | -5/Warlord | Found Prototype Device 13942 | -5/Warlord | Identified Minesniffer Drone Bay 14011 | -5/Warlord | Destroyed 66 combat bots 14037 | -5/Warlord | Spotted RM-T3M(K) 14037 | -5/Warlord | Spotted MG-A8N(K) 14051 | -5/Warlord | Warlord forces counterattacked 14054 | -5/Warlord | Destroyed MG-A8N(K) 14056 | -5/Warlord | Destroyed RM-T3M(K) 14079 | -5/Warlord | Destroyed Warlord 14084 | -5/Warlord | Destroyed Fake God Mode 14096 | -5/Warlord | Found Prototype Processor 14096 | -5/Warlord | Identified Exp. Targeting Computer 14102 | -5/Warlord | Found Prototype Processor 14102 | -5/Warlord | Identified Exp. Melee Analysis Suite 14149 | -5/Warlord | Spotted Striker 14160 | -5/Warlord | Destroyed Striker 14165 | -5/Warlord | Spotted B-75 Beast 14181 | -5/Warlord | Destroyed B-75 Beast 14204 | -5/Warlord | Spotted Striker 14205 | -5/Warlord | Destroyed 18 combat bots 14218 | -5/Warlord | Destroyed Striker 14242 | -5/Warlord | Spotted B-86 Titan 14242 | -5/Warlord | Destroyed B-86 Titan 14258 | -5/Warlord | Spotted Striker 14261 | -5/Warlord | Destroyed Striker 14262 | -5/Warlord | Spotted Striker 14265 | -5/Warlord | Destroyed Striker 14268 | -5/Warlord | Spotted Executioner 14270 | -5/Warlord | Destroyed Executioner 14312 | -5/Warlord | Destroyed 23 combat bots 14376 | -5/Warlord | Warlord base infiltrated, sounded retreat 14405 | -5/Warlord | Spotted Executioner 14408 | -5/Warlord | Destroyed Executioner 14408 | -5/Warlord | Reached level 27 14408 | -5/Warlord | Spotted Executioner 14415 | -5/Warlord | Destroyed Executioner 14438 | -5/Warlord | Destroyed 9 combat bots 14439 | -5/Warlord | Spotted Executioner 14450 | -5/Warlord | Destroyed Executioner 14482 | -5/Warlord | Spotted Executioner 14486 | -5/Warlord | Destroyed Executioner 14497 | -5/Warlord | Spotted Striker 14497 | -5/Warlord | Destroyed Striker 14529 | -5/Warlord | Destroyed 21 combat bots 14533 | -5/Warlord | Spotted Executioner 14534 | -5/Warlord | Destroyed Executioner 14587 | -5/Warlord | Spotted Executioner 14587 | -5/Warlord | Destroyed Executioner 14618 | -5/Warlord | Found Prototype Energy Cannon 14618 | -5/Warlord | Identified Vortex Driver 14620 | -5/Warlord | Destroyed 20 combat bots 14623 | -5/Warlord | Found Prototype Energy Gun 14623 | -5/Warlord | Identified Vortex Rail 14634 | -5/Warlord | Spotted Striker 14651 | -5/Warlord | Destroyed Striker 14689 | -5/Warlord | Spotted Executioner 14689 | -5/Warlord | Destroyed Executioner 14695 | -5/Warlord | Spotted B-75 Beast 14698 | -5/Warlord | Destroyed B-75 Beast 14700 | -5/Warlord | Spotted B-86 Titan 14727 | -5/Warlord | Destroyed B-86 Titan 14764 | -5/Warlord | Spotted Executioner 14777 | -5/Warlord | Destroyed 23 combat bots 14805 | -5/Warlord | Spotted Executioner 14825 | -5/Warlord | Destroyed Executioner 14836 | -5/Warlord | Destroyed Executioner 14850 | -5/Warlord | Spotted Striker 14861 | -5/Warlord | Destroyed Striker 14892 | -5/Warlord | Destroyed 17 combat bots 14967 | -5/Warlord | Spotted Striker 14973 | -5/Warlord | Destroyed Striker 14990 | -5/Warlord | Spotted Striker 15002 | -5/Warlord | Destroyed 17 combat bots 15009 | -5/Warlord | Destroyed Striker 15044 | -5/Warlord | Spotted Executioner 15052 | -5/Warlord | Destroyed Executioner 15092 | -5/Warlord | Spotted Executioner 15093 | -5/Warlord | Spotted Striker 15093 | -5/Warlord | Spotted Executioner 15097 | -5/Warlord | Destroyed Striker 15104 | -5/Warlord | Spotted Executioner 15132 | -5/Warlord | Destroyed 26 combat bots 15172 | -5/Warlord | Destroyed Executioner 15199 | -5/Warlord | Destroyed Executioner 15207 | -5/Warlord | Spotted Striker 15207 | -5/Warlord | Destroyed Executioner 15225 | -5/Warlord | Destroyed Striker 15267 | -5/Warlord | Destroyed 28 combat bots 15333 | -5/Warlord | Destroyed 10 combat bots 15374 | -5/Warlord | Spotted Executioner 15376 | -5/Warlord | Destroyed Executioner 15397 | -5/Warlord | Spotted Executioner 15397 | -5/Warlord | Destroyed Executioner 15411 | -5/Warlord | Spotted Striker 15418 | -5/Warlord | Destroyed Striker 15442 | -5/Warlord | Destroyed 15 combat bots 15498 | -5/Warlord | Destroyed 16 combat bots 15523 | -5/Warlord | Found Prototype Device 15523 | -5/Warlord | Identified Exp. Cloaking Device 15528 | -5/Warlord | Found Prototype Reactor 15528 | -5/Warlord | Identified Vortex Chain Reactor 15534 | -5/Warlord | Found Prototype Processor 15534 | -5/Warlord | Identified Exp. Core Analyzer 15618 | -5/Warlord | Found Prototype Device 15618 | -5/Warlord | Identified Adv. Kinecellerator 15644 | -5/Warlord | Found Vortex Driver 15666 | -5/Warlord | Entered Proximity Caves 15669 | -4/Proximity Caves | Spotter reported a threat 15698 | -4/Proximity Caves | Attracted the attention of an 0b10 checkpoint 15740 | -4/Proximity Caves | Spotted B-86 Titan 15746 | -4/Proximity Caves | Destroyed B-86 Titan 15748 | -4/Proximity Caves | Learned 12 Research zone layouts 15784 | -4/Proximity Caves | Reached level 28 15786 | -4/Proximity Caves | Upgraded with Utility slot (x1) 15801 | -4/Proximity Caves | Learned Research stockpile data 15823 | -4/Proximity Caves | Discovered exit to Factory (range 14) 15850 | -4/Proximity Caves | Destroyed 7 combat bots 15895 | -4/Proximity Caves | Destroyed 9 combat bots 15991 | -4/Proximity Caves | Crushed by falling debris 16006 | -4/Proximity Caves | Entered Factory 16006 | -4/Factory | Accompanied by 2 allies 16007 | -4/Factory | Identified exit to Research 16010 | -4/Factory | Loaded intel: 4 garrison access locations 16066 | -4/Factory | Discovered new exit (range 11) 16076 | -4/Factory | Found Quantum Capacitor 16202 | -4/Factory | Unchained authorized (DW-4LL) 16256 | -4/Factory | First assault squad dispatched 16320 | -4/Factory | DW-4LL burst out of a wall 16328 | -4/Factory | Destroyed DW-4LL 16330 | -4/Factory | Found Prototype Device 16330 | -4/Factory | Identified Exp. Weapon Cycler 16334 | -4/Factory | Found Prototype Processor 16334 | -4/Factory | Identified Exp. Armor Integrity Analyzer 16500 | -4/Factory | Destroyed 22 combat bots 16526 | -4/Factory | Unchained authorized (6S-H0T) 16631 | -4/Factory | High security lockdown imminent 16648 | -4/Factory | Destroyed 6S-H0T 16669 | -4/Factory | Destroyed 10 combat bots 16711 | -4/Factory | High security lockdown engaged 16729 | -4/Factory | Discovered new exit (range 14) 16730 | -4/Factory | Reached level 29 16750 | -4/Factory | Fabricated P-80 Master? 16817 | -4/Factory | Destroyed 18 combat bots 16896 | -4/Factory | Discovered exit to Research (range 6) 16915 | -4/Factory | Discovered exit to Research (range 5) 16923 | -4/Factory | Destroyed 12 combat bots 16975 | -4/Factory | Spotted B-86 Titan 16977 | -4/Factory | Destroyed B-86 Titan 17032 | -4/Factory | Destroyed 10 combat bots 17086 | -4/Factory | Sterilization system engaged 17086 | -4/Factory | Non-combat units ordered to evacuate 17114 | -4/Factory | Destroyed 15 combat bots 17164 | -4/Factory | Identified exit to Upper Caves 17169 | -4/Factory | Discovered exit to Upper Caves (range 7) 17186 | -4/Factory | Combat units ordered to evacuate 17220 | -4/Factory | Entered Upper Caves 17248 | -4/Upper Caves | Spotted B-86 Titan 17255 | -4/Upper Caves | Destroyed B-86 Titan 17273 | -4/Upper Caves | Identified exit to Upper Caves 17327 | -4/Upper Caves | Attracted the attention of an 0b10 checkpoint 17342 | -4/Upper Caves | Learned Research emergency access door positions 17461 | -4/Upper Caves | Entered another Upper Caves area 17478 | -4/Upper Caves | Discovered exit to Research (range 9) 17501 | -4/Upper Caves | Learned 12 Research zone layouts 17613 | -4/Upper Caves | Learned 4 Research zone layouts 17632 | -4/Upper Caves | Attracted the attention of an 0b10 outpost 17653 | -4/Upper Caves | Discovered new exit (range 15) 17655 | -4/Upper Caves | Destroyed 11 combat bots 17656 | -4/Upper Caves | Identified exit to Zhirov 17739 | -4/Upper Caves | Entered Zhirov 17739 | -4/Zhirov | Discovered new exit (range 3) 17744 | -4/Zhirov | Met Zhirov 17751 | -4/Zhirov | Zhirov requested help retrieving the SGEMP Prototype 17755 | -4/Zhirov | Found Alien Artifact 17755 | -4/Zhirov | Identified Integrated Dissipator 17755 | -4/Zhirov | Installed Integrated Dissipator, increased core heat dissipation (+20) 17783 | -4/Zhirov | Destroyed Zhirov 17783 | -4/Zhirov | Attacked by Zhirov 17785 | -4/Zhirov | Destroyed Svarog 17789 | -4/Zhirov | Destroyed Perun 17927 | -4/Zhirov | Found Alien Artifact 17929 | -4/Zhirov | Found Prototype Processor 17929 | -4/Zhirov | Identified Exp. Terrain Scan Processor 17947 | -4/Zhirov | Found Prototype Device 17947 | -4/Zhirov | Identified Exp. Transmission Jammer 17961 | -4/Zhirov | Cloak Generator disabled 17970 | -4/Zhirov | Identified exit to Proximity Caves 17971 | -4/Zhirov | Enhanced Grunts warped into view 17971 | -4/Zhirov | Entered Proximity Caves 17974 | -3/Proximity Caves | Attracted the attention of an 0b10 checkpoint 18011 | -3/Proximity Caves | Reached level 30 18046 | -3/Proximity Caves | Spotter reported a threat 18085 | -3/Proximity Caves | Spotted B-86 Titan 18095 | -3/Proximity Caves | Destroyed B-86 Titan 18153 | -3/Proximity Caves | Attracted the attention of an 0b10 base 18180 | -3/Proximity Caves | Learned 8 Factory zone layouts 18187 | -3/Proximity Caves | Destroyed 13 combat bots 18269 | -3/Proximity Caves | Entered Research 18270 | -3/Research | Identified exit to Quarantine 18272 | -3/Research | Identified exit to Research 18362 | -3/Research | Discovered exit to Research (range 16) 18493 | -3/Research | Unchained authorized (QV-33N) 18537 | -3/Research | Destroyed 7 combat bots 18633 | -3/Research | Destroyed 7 combat bots 18749 | -3/Research | Reached level 31 18761 | -3/Research | Garrison activated, responded to threat 18769 | -3/Research | First assault squad dispatched 18801 | -3/Research | Destroyed 12 combat bots 18884 | -3/Research | Destroyed QV-33N 18885 | -3/Research | Found Prototype Device 18885 | -3/Research | Identified QV-33N's Drone Shield 18888 | -3/Research | Core integrity fell below 50% 18934 | -3/Research | Destroyed 8 combat bots 18945 | -3/Research | Entered Quarantine 18955 | -3/Quarantine | Upgraded with Utility slot (x1) 18956 | -3/Quarantine | Found Alien Artifact 18975 | -3/Quarantine | Found Prototype Device 18975 | -3/Quarantine | Identified Exp. Thermal Shield 19082 | -3/Quarantine | Destroyed 7 combat bots 19159 | -3/Quarantine | Found Alien Artifact 19159 | -3/Quarantine | Identified Terrabomb 19159 | -3/Quarantine | Used Terrabomb 19165 | -3/Quarantine | Discovered exit to Research (range 17) 19195 | -3/Quarantine | First assault squad dispatched 19264 | -3/Quarantine | Met incapacitated Sigix Warrior 19264 | -3/Quarantine | Lockdown squad dispatched 19300 | -3/Quarantine | Spotted Lightning 19303 | -3/Quarantine | Spotted Lightning 19303 | -3/Quarantine | High security lockdown imminent 19303 | -3/Quarantine | Destroyed Lightning 19305 | -3/Quarantine | Destroyed Lightning 19306 | -3/Quarantine | Spotted Lightning 19307 | -3/Quarantine | Destroyed Lightning 19310 | -3/Quarantine | Found Prototype Device 19310 | -3/Quarantine | Identified Exp. EM Shield 19314 | -3/Quarantine | Found Prototype Device 19314 | -3/Quarantine | Identified Exp. Phase Shifter 19383 | -3/Quarantine | High security lockdown engaged 19407 | -3/Quarantine | Entered Research 19409 | -2/Research | Reached level 32 19492 | -2/Research | Discovered new exit (range 7) 19603 | -2/Research | Spotted B-90 Cyclops 19604 | -2/Research | Destroyed B-90 Cyclops 19634 | -2/Research | Destroyed 9 combat bots 19675 | -2/Research | Discovered new exit (range 16) 19679 | -2/Research | Identified exit to Access 19683 | -2/Research | Garrison activated, responded to threat 19723 | -2/Research | Destroyed 7 combat bots 19737 | -2/Research | Reached level 33 19877 | -2/Research | Spotted B-90 Cyclops 19888 | -2/Research | High security lockdown imminent 19913 | -2/Research | Destroyed B-90 Cyclops 19959 | -2/Research | Destroyed 17 combat bots 19968 | -2/Research | High security lockdown engaged 19998 | -2/Research | Discovered new exit (range 11) 20022 | -2/Research | Identified exit to Testing 20023 | -2/Research | Entered Testing 20030 | -2/Testing | Upgraded with Propulsion slot (x1) 20034 | -2/Testing | Destroyed 11 combat bots 20057 | -2/Testing | Rewired PL-WCCUXAXGUB 20061 | -2/Testing | Protovariant out of control (PL-WCCUXAXGUB) 20074 | -2/Testing | Spotted PL-WCCUXAXGUB 20079 | -2/Testing | Destroyed PL-WCCUXAXGUB 20087 | -2/Testing | Discovered exit to Access (range 17) 20096 | -2/Testing | Found Prototype Energy Gun 20096 | -2/Testing | Identified Warp Gun 20112 | -2/Testing | Scanned by Researcher 20147 | -2/Testing | Spotted Investigator 20148 | -2/Testing | Destroyed Investigator 20201 | -2/Testing | Reached level 34 20245 | -2/Testing | Found Prototype Leg 20245 | -2/Testing | Identified Myomer Exoskeleton 20273 | -2/Testing | First assault squad dispatched 20284 | -2/Testing | Rewired PD-590OJSNWMR 20324 | -2/Testing | Spotted Striker 20324 | -2/Testing | Spotted Striker 20328 | -2/Testing | Destroyed Striker 20330 | -2/Testing | Spotted Alpha 7 20341 | -2/Testing | Destroyed Striker 20341 | -2/Testing | Garrison activated, responded to threat 20352 | -2/Testing | Destroyed Alpha 7 20366 | -2/Testing | Found Prototype Device 20366 | -2/Testing | Identified Adv. EM Shield 20373 | -2/Testing | Destroyed 11 combat bots 20388 | -2/Testing | Found Prototype Device 20388 | -2/Testing | Identified Exp. Thermal Defense Suite 20421 | -2/Testing | High security lockdown imminent 20449 | -2/Testing | Destroyed 16 combat bots 20487 | -2/Testing | Destroyed 9 combat bots 20495 | -2/Testing | Spotted Fortress 20500 | -2/Testing | Destroyed Fortress 20501 | -2/Testing | High security lockdown engaged 20509 | -2/Testing | Found Prototype Device 20509 | -2/Testing | Identified Thermal Barrier 20527 | -2/Testing | Discovered new exit (range 6) 20527 | -2/Testing | Discovered new exit (range 7) 20528 | -2/Testing | Identified exit to Section 7 20529 | -2/Testing | Identified exit to Protoforge 20529 | -2/Testing | Entered Protoforge 20564 | -2/Protoforge | Superfortress began startup sequence 20578 | -2/Protoforge | Spotted B-90 Cyclops 20606 | -2/Protoforge | Destroyed 11 combat bots 20712 | -2/Protoforge | Spotted Hotshot 20712 | -2/Protoforge | Spotted Hotshot 20712 | -2/Protoforge | Spotted Hotshot 20712 | -2/Protoforge | Spotted Hotshot 20713 | -2/Protoforge | Destroyed Hotshot 20713 | -2/Protoforge | Destroyed Hotshot 20713 | -2/Protoforge | Destroyed Hotshot 20715 | -2/Protoforge | Destroyed Hotshot 20734 | -2/Protoforge | Spotted Overlord 20735 | -2/Protoforge | Destroyed Overlord 20760 | -2/Protoforge | Destroyed 9 combat bots 20763 | -2/Protoforge | Reached level 35 20779 | -2/Protoforge | First assault squad dispatched 20847 | -2/Protoforge | Destroyed 15 combat bots 20859 | -2/Protoforge | Discovered exit to Access (range 17) 20994 | -2/Protoforge | Spotted AP7-3 20994 | -2/Protoforge | Spotted AP7-3 20998 | -2/Protoforge | Destroyed AP7-3 21001 | -2/Protoforge | Destroyed AP7-3 21014 | -2/Protoforge | Spotted EXE-6 21014 | -2/Protoforge | Spotted EXE-6 21018 | -2/Protoforge | Destroyed EXE-6 21019 | -2/Protoforge | Destroyed EXE-6 21020 | -2/Protoforge | Spotted SKR-2 21040 | -2/Protoforge | Destroyed 19 combat bots 21045 | -2/Protoforge | Spotted SKR-2 21045 | -2/Protoforge | Spotted SKR-2 21050 | -2/Protoforge | Destroyed SKR-2 21050 | -2/Protoforge | Destroyed SKR-2 21053 | -2/Protoforge | Destroyed SKR-2 21074 | -2/Protoforge | Found Prototype Processor 21074 | -2/Protoforge | Identified Exp. Target Analyzer 21115 | -2/Protoforge | Identified Transdimensional Reconstructor 21115 | -2/Protoforge | Forge Plexus network access discovered 21160 | -2/Protoforge | Spotted V752-t 21160 | -2/Protoforge | Spotted V938-w 21164 | -2/Protoforge | Destroyed V938-w 21166 | -2/Protoforge | Destroyed V752-t 21173 | -2/Protoforge | Found Cep. Network Penetrator 21225 | -2/Protoforge | Core integrity fell below 50% 21240 | -2/Protoforge | Spotted Decapitator 21240 | -2/Protoforge | Spotted Decapitator 21240 | -2/Protoforge | Spotted Decapitator 21258 | -2/Protoforge | Destroyed Decapitator 21259 | -2/Protoforge | Destroyed Decapitator 21260 | -2/Protoforge | Destroyed Decapitator 21300 | -2/Protoforge | Spotted V530-j 21300 | -2/Protoforge | Spotted V417-o 21301 | -2/Protoforge | Spotted Immortal 21302 | -2/Protoforge | Spotted Immortal 21305 | -2/Protoforge | Destroyed Immortal 21307 | -2/Protoforge | Destroyed Immortal 21309 | -2/Protoforge | Spotted V534-w 21309 | -2/Protoforge | Spotted V659-q 21324 | -2/Protoforge | Destroyed V417-o 21326 | -2/Protoforge | Destroyed V659-q 21327 | -2/Protoforge | System corruption reached 10% 21334 | -2/Protoforge | Destroyed V530-j 21372 | -2/Protoforge | Destroyed 12 combat bots 21458 | -2/Protoforge | Spotted V827-m 21459 | -2/Protoforge | Spotted Decapitator 21462 | -2/Protoforge | Destroyed Decapitator 21462 | -2/Protoforge | Destroyed V827-m 21462 | -2/Protoforge | Spotted V240-l 21464 | -2/Protoforge | Spotted Decapitator 21466 | -2/Protoforge | Spotted Decapitator 21466 | -2/Protoforge | Destroyed Decapitator 21467 | -2/Protoforge | Destroyed Decapitator 21471 | -2/Protoforge | Garrison activated, responded to threat 21473 | -2/Protoforge | Destroyed V240-l 21493 | -2/Protoforge | Found Crosscalibrator 21496 | -2/Protoforge | Destroyed 18 combat bots 21558 | -2/Protoforge | Spotted Decapitator 21558 | -2/Protoforge | Spotted Decapitator 21559 | -2/Protoforge | Spotted Decapitator 21559 | -2/Protoforge | Spotted Decapitator 21559 | -2/Protoforge | Spotted Decapitator 21564 | -2/Protoforge | Destroyed Decapitator 21565 | -2/Protoforge | Destroyed Decapitator 21568 | -2/Protoforge | Destroyed Decapitator 21568 | -2/Protoforge | Destroyed Decapitator 21569 | -2/Protoforge | Destroyed Decapitator 21603 | -2/Protoforge | Central database locked down 21626 | -2/Protoforge | Spotted EXE-6 21626 | -2/Protoforge | Spotted EXE-6 21629 | -2/Protoforge | Destroyed EXE-6 21630 | -2/Protoforge | Destroyed EXE-6 21713 | -2/Protoforge | Fabricated Particle Accelerator (x1) 21806 | -2/Protoforge | Destroyed 20 combat bots 21811 | -2/Protoforge | Destroyed V534-w 22019 | -2/Protoforge | Destroyed 12 combat bots 22058 | -2/Protoforge | Spotted V875-b 22058 | -2/Protoforge | Spotted V518-q 22058 | -2/Protoforge | Spotted V603-n 22058 | -2/Protoforge | Spotted V660-s 22061 | -2/Protoforge | Destroyed V660-s 22064 | -2/Protoforge | Destroyed V875-b 22067 | -2/Protoforge | Destroyed V518-q 22074 | -2/Protoforge | Found Cep. Fieldthrust Drive 22081 | -2/Protoforge | Found Faulty Cep. Fieldthrust Drive 22167 | -2/Protoforge | Spotted V073-n 22168 | -2/Protoforge | Destroyed V073-n 22171 | -2/Protoforge | Found Cep. Zero-point Core 22187 | -2/Protoforge | Found Faulty Cep. Zero-point Core 22288 | -2/Protoforge | Reached level 36 22288 | -2/Protoforge | High security lockdown imminent 22288 | -2/Protoforge | Destroyed Superfortress 22289 | -2/Protoforge | Upgraded with Utility slot (x1) 22290 | -2/Protoforge | Spotted Hotshot 22297 | -2/Protoforge | Destroyed Hotshot 22318 | -2/Protoforge | Destroyed 9 combat bots 22368 | -2/Protoforge | High security lockdown engaged 22603 | -2/Protoforge | Destroyed Investigator 22606 | -2/Protoforge | Spotted Executioner 22608 | -2/Protoforge | Destroyed Executioner 22632 | -2/Protoforge | Destroyed 35 combat bots 22681 | -2/Protoforge | Spotted Executioner 22684 | -2/Protoforge | Destroyed Executioner 22724 | -2/Protoforge | Spotted Executioner 22785 | -2/Protoforge | Destroyed Executioner 22828 | -2/Protoforge | Spotted Hotshot 22829 | -2/Protoforge | Spotted Hotshot 22830 | -2/Protoforge | Destroyed Hotshot 22831 | -2/Protoforge | Spotted Hotshot 22831 | -2/Protoforge | Destroyed Hotshot 22833 | -2/Protoforge | Spotted Hotshot 22834 | -2/Protoforge | Destroyed Hotshot 22834 | -2/Protoforge | Spotted Hotshot 22837 | -2/Protoforge | Destroyed Hotshot 22839 | -2/Protoforge | Destroyed Hotshot 22872 | -2/Protoforge | Destroyed 28 combat bots 22887 | -2/Protoforge | Spotted Striker 22887 | -2/Protoforge | Spotted Striker 22887 | -2/Protoforge | Spotted Investigator 22904 | -2/Protoforge | Spotted Striker 22904 | -2/Protoforge | Spotted Executioner 22923 | -2/Protoforge | Destroyed Striker 22925 | -2/Protoforge | Destroyed Striker 22928 | -2/Protoforge | Destroyed Investigator 22931 | -2/Protoforge | Destroyed Striker 23235 | -2/Protoforge | Destroyed Executioner 23254 | -2/Protoforge | Spotted Investigator 23262 | -2/Protoforge | Spotted Striker 23262 | -2/Protoforge | Spotted Striker 23262 | -2/Protoforge | Destroyed Striker 23262 | -2/Protoforge | Destroyed Striker 23286 | -2/Protoforge | Destroyed Investigator 23310 | -2/Protoforge | System corruption reached 30% 23311 | -2/Protoforge | System corrupted Last Messages --------------- 23307_ Forge Plexus crushes Biometal Leg. 23307_ Forge Plexus crushes Adv. Heat Sink. 23307_ Forge Plexus crushes Adv. Melee Analysis Suite. 23308_ Acquired 37 matter. 23310_ Forge Plexus crushes Protomatter-72. 23310_ Forge Plexus crushes 172 Matter. 23310_ Forge Plexus crushes 16 Matter. 23310_ Forge Plexus crushes Cesium-ion Thruster. 23310_ Forge Plexus crushes 223 Matter. 23310_ Forge Plexus crushes Adv. Phase Shifter. 23310_ Forge Plexus crushes Adv. Heat Sink. 23310_ Forge Plexus crushes 89 Matter. 23310_ Forge Plexus crushes Adv. Heat Sink. 23310_ Forge Plexus crushes Cesium-ion Thruster. 23310_ Forge Plexus crushes Segregator. 23310_ Forge Plexus crushes Cesium-ion Thruster. 23310_ Forge Plexus crushes 4 Matter. 23310_ Forge Plexus crushes Adv. Targeting Computer. 23311_ System corrupted: Energy discharge (-132). 23311_ Cogmind system terminally corrupted. Map ----- +----------------------------------------------------+ | " " "! !%=" "" | | " %=" =! / "" | | """"""""" !%* = " | | """"""""""""""" /!"" """ | | """"""""""""""""" !"" " | | """"""""""""""""""" "" | | """"""""""""""""""""" "" | | """"""""""""""""""""""" "" | | " " """"""""""""""""""""""""" | | "["%""""""""""""""""""""""""""" " " | | %*%""""""""""""""""""""""""""" "" | | %[[%""""""""""""""""""""""""""" "" | | ""[% *""""""""""""""""""""""""""""" "" | | "" =%= """"""""""""""""""""""""""""" " " | | ![[==""""""""""""""""""""""""""""" | | = %=*""""" """"""""""""""""""""""" " | | """ "%==="""" """"""""""""""""""""""" " " " | | " ![!%%!==!["""""""""""""""""""""""" " | | """ %% !*=!!==[="""""""""""""""""""""""" | | " """ "%""=!=%%[%%=""""""""""" """""""""""" " " | | "" ""% %*!%=][%"""""""""" """"""""""""" " | | "%%%=[!!* """""""" """"""""""""" "" " | | % [%=*"=* """"""" """""""""""""" """ | | """"""" "!%g"""[ """""" """"""""""""""" "" | | """ " "g!m[""" """"" """"""""""""""" " | | " lg m """" @ """""" "" " | | % "" % """"""""""""""""""""" " " | | "" " """"""""""""""""""" " " | | "" % "" """"""""""""""""" "" " | | "" %" "" """"""""""""""" "" "" " | | " % % """"""""" "" "" | | " """ "" "" "" "" | | " " " i""""" " "" "" "" | | " """ " " " | | " " " """" """" " "" | | " " "" " """ """ "" """""""""" "" | | " " """" """ " | | " " " """ % " """ " """ " | | "" "" " " " " " "" "" " | | " "" " """" " "" "" | | "" "" " " "" """ " " " | | "" " " """" | | "" "" != " | | ! =" "" % *% """""""""" """ | | ""!!*!!!"" % =%! """ """ | | ""! ==![ " % """""""""" " " | | ######=%"######################################+++ | | ?????#####???????????????????????????????????????? | | ?????????????????????????????????????????????????? | | ?????????????????????????????????????????????????? | +----------------------------------------------------+ Best States ------------- Heat Dissipation 433 Energy Generation 87 Energy Capacity 400 Matter Stores 300 Matter Capacity 300 Sight Range 17 Robot Scan Range 12 Terrain Scan Range 16 Terrain Scan Density 1010 Power Amplification 20 Additional Mass Support 16 Base Temperature (-) 200 Armor Coverage 225 Resistance: TH 50 Weapon Cycling 30 Evasion (%) 72 Particle Charging 42 Kinecelleration 30 Offensive Hacking 55 Defensive Hacking 5 Item Schematics ----------------- Hvy. Assault Rifle | -9/Materials | Extracted Flight Unit | -9/Materials | Extracted Disposable Heat Sink | -9/Materials | Extracted Maul | -9/Materials | Extracted Cooling System | -9/Materials | Extracted System Shield | -8/Materials | Extracted Imp. Aluminum Leg | -8/Materials | Extracted Carbon-fiber Leg | -8/Materials | Extracted Beam Rifle | -8/Materials | Extracted EM Pulse Gun | -8/Materials | Extracted Imp. Signal Interpreter | -8/Materials | Extracted Field Laser | -8/Materials | Extracted Particle Charger | -8/Materials | Extracted Hvy. Particle Cannon | -8/Materials | Extracted Cesium-ion Thruster | -8/Materials | Extracted Assault Rifle | -8/Materials | Extracted Assault Cannon | -8/Materials | Extracted Imp. Cryofiber Web | -5/Factory | Hacked Adv. Heat Sink | -5/Factory | Hacked Imp. Kinecellerator | -5/Factory | Extracted Imp. Shock Absorption System | -5/Factory | Extracted Assault Drone Bay | -4/Zhirov | Free Exp. Optical Array | -4/Zhirov | Free Exp. Heat Sink | -4/Zhirov | Free Imp. Arc Thrower | -4/Zhirov | Free Prc. Matter Filter | -3/Quarantine | Archive Exp. EM Disruption Field | -3/Quarantine | Archive Exp. Signal Interpreter | -3/Quarantine | Archive Hds. Centrium Wheel | -3/Quarantine | Archive Centrium Heavy Treads | -3/Quarantine | Archive Exp. Sensor Array | -3/Quarantine | Archive Adv. Myomer Leg | -3/Quarantine | Archive Spectral Analyzer | -3/Quarantine | Archive Adv. Remote Shield | -3/Quarantine | Archive Adv. Gravity Neutralizer | -3/Quarantine | Archive Hvy. Gatling Laser | -3/Quarantine | Archive Hvy. Neutron Cannon | -2/Testing | Archive Lgt. Antimatter Cannon | -2/Testing | Archive Hds. Centrium Leg | -2/Testing | Archive Lgt. Regenerative Plating | -2/Testing | Hacked Adv. Variable Charge Gun | -2/Testing | Archive Enh. Biometal Leg | -2/Testing | Archive Exp. Q-thruster | -2/Testing | Archive Electron Diverter | -2/Testing | Archive Adv. Thermal Defense Suite | -2/Testing | Archive Adv. KE Penetrator | -2/Testing | Archive Exp. Targeting Computer | -2/Testing | Archive Adv. EM Disruption Field | -2/Testing | Archive Lrn. Phase Cannon | -2/Testing | Archive Centrium Greatsword | -2/Testing | Archive Cld. Q-thruster | -2/Protoforge | Archive Centrium Heavy Armor Plating | -2/Protoforge | Archive Exp. Power Amplifier | -2/Protoforge | Archive Diametric Drive | -2/Protoforge | Archive Stealth Drone Bay | -2/Protoforge | Archive Imp. Matter Neutralizer | -2/Protoforge | Archive Particle Accelerator | -2/Protoforge | Hacked Exp. Power Shielding | -2/Protoforge | Archive Robot Schematics ------------------ K-01 Serf | -5/Factory | Archive T-07 Excavator | -5/Factory | Archive A-02 Transporter | -5/Factory | Archive A-15 Conveyor | -5/Factory | Archive R-06 Scavenger | -5/Factory | Archive R-10 Processor | -5/Factory | Archive M-14 Sweeper | -5/Factory | Archive M-22 Extractor | -5/Factory | Archive M-30 Cleanser | -5/Factory | Archive M-13 Machinist | -5/Factory | Archive M-28 Smith | -5/Factory | Archive M-36 Artificer | -5/Factory | Archive O-16 Technician | -5/Factory | Archive O-24 Administrator | -5/Factory | Archive O-32 Director | -5/Factory | Archive W-16 Scout | -5/Factory | Archive W-25 Informer | -5/Factory | Archive W-44 Eye | -5/Factory | Archive S-10 Pest | -5/Factory | Archive S-27 Virus | -5/Factory | Archive S-43 Plague | -5/Factory | Archive G-34 Mercenary | -5/Factory | Archive G-47 Trooper | -5/Factory | Archive G-50 Soldier | -5/Factory | Archive G-67 Veteran | -5/Factory | Archive G-73 Enforcer | -5/Factory | Archive B-36 Bruiser | -5/Factory | Archive B-48 Gladiator | -5/Factory | Archive B-60 Warrior | -5/Factory | Archive B-74 Champion | -5/Factory | Archive L-31 Rogue | -5/Factory | Archive L-41 Fighter | -5/Factory | Archive L-61 Swordsman | -5/Factory | Archive Y-45 Defender | -5/Factory | Archive Y-54 Guardian | -5/Factory | Archive Y-64 Sentinel | -5/Factory | Archive Y-72 Warden | -5/Factory | Archive D-53 Grenadier | -5/Factory | Archive D-63 Destroyer | -5/Factory | Archive D-83 Annihilator | -5/Factory | Archive X-57 Shotgunner | -5/Factory | Archive X-62 Marksman | -5/Factory | Archive X-67 Chaingunner | -5/Factory | Archive X-72 Disruptor | -5/Factory | Archive X-77 Beamer | -5/Factory | Archive X-82 Rainmaker | -5/Factory | Archive X-87 Electro | -5/Factory | Archive H-55 Commando | -5/Factory | Archive H-66 Slayer | -5/Factory | Archive H-77 Assassin | -5/Factory | Archive H-88 Terminator | -5/Factory | Archive P-60 Hacker | -5/Factory | Archive P-70 Sage | -5/Factory | Archive P-80 Master | -5/Factory | Archive C-65 Expert | -2/Protoforge | Archive Fabricated ------------ Imp. Signal Interpreter | x2 | -6/Factory Imp. Cryofiber Web | x2 | -5/Factory Adv. Heat Sink | x2 | -5/Factory Adv. Heat Sink | x2 | -5/Factory P-80 Master | x2 | -4/Factory Particle Accelerator | x1 | -2/Protoforge Repaired ---------- Nothing Studied --------- None Alien Tech Used ----------------- Dimensional Node Initializer Integrated Dissipator Terrabomb Achievements -------------- None Challenges ------------ None RPGLIKE | -11 -10 -10 -9 -9 -8 -8 -8 -6 -6 -6 -6 -6 -5 -5 -5 -5 -5 -5 -5 -4 -4 -4 -4 -4 -3 -3 -3 -2 -2 -2 --------- Run | Yrd Mat Min Mat Min Mat Sto Rec Fac Low Low Zio Dee Pro Fac Was Fac Upp Upp War Pro Fac Upp Upp Zhi Pro Res Qua Res Tes Frg Levels Raised 35 | . 2 1 5 1 3 2 . 6 . . . . 1 3 . 1 . . 1 1 1 . . . 1 1 . 2 1 2 XP Earned 56615 | 3000 4232 1250 7748 374 5655 1771 346 9374 82 343 86 167 1280 3323 22 1991 164 111 1787 574 2133 124 141 57 761 1550 816 2654 1557 3142 XP Spent 54435 | 2960 3040 1100 7770 1100 4890 1500 . 10620 . . . . 1400 3080 . 2600 . . . 2900 1600 . . . . . 3200 . 3175 3500 Upgrades 76 | 10 7 2 12 1 5 1 . 16 . . . . 1 5 . 1 . . . 1 4 . . . . . 1 . 8 1 Power Slot 1 | 1 . . . . . . . . . . . . . . . . . . . . . . . . . . . . . . Propulsion Slot 5 | 1 1 . 1 . . . . 1 . . . . . . . . . . . . . . . . . . . . 1 . Utility Slot 11 | 1 1 . 2 . 1 . . 1 . . . . . 1 . 1 . . . 1 . . . . . . 1 . . 1 Weapon Slot 4 | 1 . . 2 . . . . . . . . . 1 . . . . . . . . . . . . . . . . . Core Integrity 4 | . . . . . . . . 2 . . . . . 2 . . . . . . . . . . . . . . . . Heat Dissipation 20 | 3 2 . 2 . 1 . . 6 . . . . . 2 . . . . . . 4 . . . . . . . . . Energy Generation 3 | . . . 2 . . . . . . . . . . . . . . . . . . . . . . . . . 1 . Mass Support 4 | 1 . 1 . 1 . . . 1 . . . . . . . . . . . . . . . . . . . . . . Inventory Capacity 6 | 1 . 1 . . 3 1 . . . . . . . . . . . . . . . . . . . . . . . . Sight Range 1 | . 1 . . . . . . . . . . . . . . . . . . . . . . . . . . . . . Sensor Range 6 | . . . . . . . . . . . . . . . . . . . . . . . . . . . . . 6 . Ranged Accuracy 8 | 1 2 . 1 . . . . 4 . . . . . . . . . . . . . . . . . . . . . . Hack Attack % 1 | . . . 1 . . . . . . . . . . . . . . . . . . . . . . . . . . . Hack Defense % 1 | . . . 1 . . . . . . . . . . . . . . . . . . . . . . . . . . . KI Damage % 1 | . . . . . . . . 1 . . . . . . . . . . . . . . . . . . . . . . Protomatter Created 34252 | . 317 156 470 26 685 597 156 2458 . 373 329 110 444 1509 171 2841 566 143 6819 870 3130 243 250 . 627 1432 904 1488 1318 5820 Integrity Restored 32887 | . 648 427 415 26 794 544 168 3666 . 522 494 438 103 2664 356 2102 260 50 4649 653 2413 198 49 . 647 1271 1015 1382 1186 5747 Core 25520 | . 648 279 301 12 511 404 101 3033 . 430 447 340 85 2212 195 1681 138 46 3752 578 1796 154 38 . 569 1033 541 1014 811 4371 Parts 7367 | . . 148 114 14 283 140 67 633 . 92 47 98 18 452 161 421 122 4 897 75 617 44 11 . 78 238 474 368 375 1376 Protomatter Decayed 12999 | . . 27 215 23 412 206 97 578 . 92 90 107 240 629 . 1374 296 93 2691 499 1403 160 230 . 185 653 340 656 519 1184 Game ------ Seed KineticJammingRecalibrator Manual? 0 Play Time 05:39:56 Cumulative 563.7 hours Start 2026.01.20 @ 18:14:30 End 2026.01.21 @ 12:59:04 Sessions 3 Manual Loads 0 Difficulty Rogue Special Mode Winter2019/RPGLIKE Game No. 219 Rogue 65 Adventurer 154 Explorer 0 Win Type - Total 20 Types 4/4/3/3/2/1/0/1/1/1 Lore% 95 Gallery% 88 Achievement% 61 Wizard Run 0 Options --------- Layout 0 ASCII 0 Keyboard 0 Movement Numpad Keybinds 0 Fullscreen 2 Font 18/SmallcapsGlow Map View 76x50 Zoom Use 0% Tactical HUD 1 Map Filters NONE Filters NONE Steam 1 RUN: 10956538-8404-4380-b39c-24f29bf5a970